Workbook

Sheet Introduction
A1: Carbon dynamics of wood and wood-based products - assessment at the corporate level
A2: version 2024-11-25
A4: Background
A5: This template shows the calculations for reporting corporate impact of wood-based products on the global climate according to the CLEAR model.
A6: Purpose: To assess the climate effect of the wood and wood-based products put on the market by a corporation during a defined period of time (normally one year or a sequence of years)
A8: For an overview of the CLEAR model, see report by Holmgren & Strömgren 2024:
A9: 1187-2024-manual-for-reporting-corporate-impact-of-wood-based-products-on-the-global-climate.pdf (skogforsk.se)
A11: Components in the CLEAR model
A12: 1 Value chain emissions for wood-based products
A13: 2 Prevented emissions from counterfactual products
A14: 3 Change of carbon stored in forest
A15: 4 Change of carbon stored in wood-based products
A37: Methodology Steps | B37: See worksheet:
A38: 1. Define the time period(s) for the assessment | B38: General Input Data
A39: 2. Define the set of product categories/uses that are included in the assessment, provide production data and conversions to CO2e for each | B39: General Input Data
A40: 3. Work through each of the four components to assess climate effect of each | B40: 1, 2b, 3 and 4
A41: 4. The summary assessment is provided | B41: Summary of Assessment
A43: General instruction on data input:
A44: Cells are color-coded to identify the cells where data are entered, as follows:
A45: Cells where data are entered manually
A46: Cells where data is copied/calculated based on other cells - NO manual input to be made in these cells
A47: Cells where constants / conversion factors are provided
A48: Cells with no data
A51: Version information
A52: 2024-11-25 | B52: Published version

Sheet General input data
A1: General input data
A4: Corporation name | B4: Name of Corporation
A5: Notes on assessment process | B5: Eg purpose and general info on data input / corporate setting
A7: Time periods (years) and Marketed wood-based product categories by the corporation. Product categories are identified only in the first year/time period
A9: Time period XXX
A10: Product category | B10: Product use | C10: Marketed volumes | G10: Colour coding:
C11: quantity | D11: unit | E11: tCO2e | G11: Cells where data are entered manually
A12: Product category 1 | C12: 100 | E12: 100 | G12: Cells where data is copied/calculated based on other cells - NO manual input to be made in these cells
A13: Product category 2 | C13: 100 | E13: 100 | G13: Cells where with constants / conversion factors are provided
G14: Cells with no data
G16: Factors
G17: Conversion factors used, example
G18: Solid wood products | H18: 0.9175 | I18: tCO2e/m3
G19: Massa | H19: =0.45*3.67 -> 1.6515 | I19: tCO2e/t
G20: Uncoated paper | H20: =0.4*3.67 -> 1.468 | I20: tCO2e/t
G21: Coated paper | H21: =0.3*3.67 -> 1.101 | I21: tCO2e/t
G22: Liner | H22: =0.4*3.67 -> 1.468 | I22: tCO2e/t
G23: Bioenergy, general conversion | H23: 0.45 | I23: tCO2e/MWh
G24: (Bio)diesel | H24: 2.64 | I24: tCO2e/m3
G25: Stem wood to total living biomass | H25: 1.375 | I25: tCO2e/m3sk

Sheet 1 Value chain emissions
A1: Component 1: Value chain emissions for wood-based products
D2: Colour coding:
A3: Value chain emissions refer to all fossil/process emissions required for the manufacturing and delivery of the considered wood-based products in the defined time period. In LCA language this corresponds to Cradle to Gate. In the current assessment, emissions from Gate to Grave may be included for comparing with alternative products. This is covered under the Displacement component. | D3: Cells where data are entered manually
D4: Cells where data is copied/calculated based on other cells - NO manual input to be made in these cells
D5: Cells where constants / conversion factors are provided
D6: Cells with no data
A9: The GHG Protocol is a suitable methodology for value chain emissions in a defined time period, such as a year. It is also a broadly adopted methodology used in many corporate annual reports. Data can therefore be readily available from other corporate reporting processes. The same structure using scopes is applied:
A10: Scope 1 emissions for direct emissions by the corporation
A11: Scope 2 for indirect emissions from corporate energy use
A12: Scope 3 for indirect emissions upstream or downstream in the value chain
A13: Note that Scope 3 emissions for downstream use phase (Gate to Grave) are not included here, but covered (when applicable) in the Displcement component
A14: Note also that the upcoming GHG Protocol approach to include biogenic emissions is not included here, as this is covered by the Forest carbon balance and Product carbon storage components
A16: Detailed methodologies for GHG Protocol application is available, see key references below:
A17: https://ghgprotocol.org/sites/default/files/standards/ghg-protocol-revised.pdf
A18: https://ghgprotocol.org/sites/default/files/standards/Corporate-Value-Chain-Accounting-Reporing-Standard_041613_2.pdf
A19: https://ghgprotocol.org/sites/default/files/standards/Scope3_Calculation_Guidance_0.pdf
A22: ='General input data'!A9 -> Time period XXX
A23: Emission category (List can be made more detailed as required) | B23: Emissions Cradle to Gate | C23: Notes
B24: tCO2e
A25: Scope 1 | B25: 10
A26: Scope 2 | B26: 20
A27: Scope 3 | B27: 30
A50: Total | B50: =SUM(B25:B49) -> 60

Sheet 2 Prevented emissions - totals
A1: Component 2: Prevented emissions from counterfactual products (Summary)
A3: This sheet summarizes the details on sheet 2b Preventet emissions -details
A4: It is locked to avoid unwanted edits | C4: Den är inte låst nu!
B7: Colour coding:
B8: Cells where data are entered manually
B9: Cells where data is copied/calculated based on other cells - NO manual input to be made in these cells
B10: Cells where constants / conversion factors are provided
B11: Cells with no data
B14: ='General input data'!A9 -> Time period XXX
B15: Product category | C15: Product use | D15: Marketed volumes | G15: First use | I15: Final use (energy) | K15: Total Displacement
D16: quantity | E16: unit of measure | F16: in tCO2e | G16: Displacement Factor (from details sheet) | H16: Prevented emissions | I16: Displacement Factor (from details sheet) | J16: Prevented emissions | K16: Overall Displacement Factor | L16: Total Prevented emissions
A17: cat | G17: tCO2e/tCO2e | H17: tCO2e | I17: tCO2e/tCO2e | J17: tCO2e | K17: tCO2e/tCO2e | L17: tCO2e
A18: 0 | B18: =IF('General input data'!A12<>"",'General input data'!A12,"") -> Product category 1 | C18: =IF('General input data'!B12<>"",'General input data'!B12,"") ->  | D18: =IF('General input data'!C12<>"",'General input data'!C12,"") -> 100 | E18: =IF('General input data'!D12<>"",'General input data'!D12,"") ->  | F18: =IF('General input data'!E12<>"",'General input data'!E12,"") -> 100 | G18: =IF(F18<>0,OFFSET('2b Prevented emissions -details'!$I$69,A18*12,0),"") -> -1 | H18: =IF(F18<>"",OFFSET('2b Prevented emissions -details'!$K$69,A18*12,0),"") -> -100 | I18: =IF(D18<>"",OFFSET('2b Prevented emissions -details'!$N$69,12*A18,0),"") -> -0.33 | J18: =IF(F18<>"",OFFSET('2b Prevented emissions -details'!$P$69,A18*12,0),"") -> -33 | K18: =IF(F18<>"",OFFSET('2b Prevented emissions -details'!$S$69,A18*12,0),"") -> -1.33 | L18: =IF(F18<>"",OFFSET('2b Prevented emissions -details'!$R$69,A18*12,0),"") -> -133
A19: 1 | B19: =IF('General input data'!A13<>"",'General input data'!A13,"") -> Product category 2 | C19: =IF('General input data'!B13<>"",'General input data'!B13,"") ->  | D19: =IF('General input data'!C13<>"",'General input data'!C13,"") -> 100 | E19: =IF('General input data'!D13<>"",'General input data'!D13,"") ->  | F19: =IF('General input data'!E13<>"",'General input data'!E13,"") -> 100 | G19: =IF(F19<>0,OFFSET('2b Prevented emissions -details'!$I$69,A19*12,0),"") -> -0.7 | H19: =IF(F19<>"",OFFSET('2b Prevented emissions -details'!$K$69,A19*12,0),"") -> -70 | I19: =IF(D19<>"",OFFSET('2b Prevented emissions -details'!$N$69,12*A19,0),"") -> -0.07 | J19: =IF(F19<>"",OFFSET('2b Prevented emissions -details'!$P$69,A19*12,0),"") -> -7 | K19: =IF(F19<>"",OFFSET('2b Prevented emissions -details'!$S$69,A19*12,0),"") -> -0.77 | L19: =IF(F19<>"",OFFSET('2b Prevented emissions -details'!$R$69,A19*12,0),"") -> -77
A20: 2 | B20: =IF('General input data'!A14<>"",'General input data'!A14,"") ->  | C20: =IF('General input data'!B14<>"",'General input data'!B14,"") ->  | D20: =IF('General input data'!C14<>"",'General input data'!C14,"") ->  | E20: =IF('General input data'!D14<>"",'General input data'!D14,"") ->  | F20: =IF('General input data'!E14<>"",'General input data'!E14,"") ->  | G20: =IF(F20<>0,OFFSET('2b Prevented emissions -details'!$I$69,A20*12,0),"") ->  | H20: =IF(F20<>"",OFFSET('2b Prevented emissions -details'!$K$69,A20*12,0),"") ->  | I20: =IF(D20<>"",OFFSET('2b Prevented emissions -details'!$N$69,12*A20,0),"") ->  | J20: =IF(F20<>"",OFFSET('2b Prevented emissions -details'!$P$69,A20*12,0),"") ->  | K20: =IF(F20<>"",OFFSET('2b Prevented emissions -details'!$S$69,A20*12,0),"") ->  | L20: =IF(F20<>"",OFFSET('2b Prevented emissions -details'!$R$69,A20*12,0),"") -> 
A21: 3 | B21: =IF('General input data'!A15<>"",'General input data'!A15,"") ->  | C21: =IF('General input data'!B15<>"",'General input data'!B15,"") ->  | D21: =IF('General input data'!C15<>"",'General input data'!C15,"") ->  | E21: =IF('General input data'!D15<>"",'General input data'!D15,"") ->  | F21: =IF('General input data'!E15<>"",'General input data'!E15,"") ->  | G21: =IF(F21<>0,OFFSET('2b Prevented emissions -details'!$I$69,A21*12,0),"") ->  | H21: =IF(F21<>"",OFFSET('2b Prevented emissions -details'!$K$69,A21*12,0),"") ->  | I21: =IF(D21<>"",OFFSET('2b Prevented emissions -details'!$N$69,12*A21,0),"") ->  | J21: =IF(F21<>"",OFFSET('2b Prevented emissions -details'!$P$69,A21*12,0),"") ->  | K21: =IF(F21<>"",OFFSET('2b Prevented emissions -details'!$S$69,A21*12,0),"") ->  | L21: =IF(F21<>"",OFFSET('2b Prevented emissions -details'!$R$69,A21*12,0),"") -> 
A22: 4 | B22: =IF('General input data'!A16<>"",'General input data'!A16,"") ->  | C22: =IF('General input data'!B16<>"",'General input data'!B16,"") ->  | D22: =IF('General input data'!C16<>"",'General input data'!C16,"") ->  | E22: =IF('General input data'!D16<>"",'General input data'!D16,"") ->  | F22: =IF('General input data'!E16<>"",'General input data'!E16,"") ->  | G22: =IF(F22<>0,OFFSET('2b Prevented emissions -details'!$I$69,A22*12,0),"") ->  | H22: =IF(F22<>"",OFFSET('2b Prevented emissions -details'!$K$69,A22*12,0),"") ->  | I22: =IF(D22<>"",OFFSET('2b Prevented emissions -details'!$N$69,12*A22,0),"") ->  | J22: =IF(F22<>"",OFFSET('2b Prevented emissions -details'!$P$69,A22*12,0),"") ->  | K22: =IF(F22<>"",OFFSET('2b Prevented emissions -details'!$S$69,A22*12,0),"") ->  | L22: =IF(F22<>"",OFFSET('2b Prevented emissions -details'!$R$69,A22*12,0),"") -> 
A23: 5 | B23: =IF('General input data'!A17<>"",'General input data'!A17,"") ->  | C23: =IF('General input data'!B17<>"",'General input data'!B17,"") ->  | D23: =IF('General input data'!C17<>"",'General input data'!C17,"") ->  | E23: =IF('General input data'!D17<>"",'General input data'!D17,"") ->  | F23: =IF('General input data'!E17<>"",'General input data'!E17,"") ->  | G23: =IF(F23<>0,OFFSET('2b Prevented emissions -details'!$I$69,A23*12,0),"") ->  | H23: =IF(F23<>"",OFFSET('2b Prevented emissions -details'!$K$69,A23*12,0),"") ->  | I23: =IF(D23<>"",OFFSET('2b Prevented emissions -details'!$N$69,12*A23,0),"") ->  | J23: =IF(F23<>"",OFFSET('2b Prevented emissions -details'!$P$69,A23*12,0),"") ->  | K23: =IF(F23<>"",OFFSET('2b Prevented emissions -details'!$S$69,A23*12,0),"") ->  | L23: =IF(F23<>"",OFFSET('2b Prevented emissions -details'!$R$69,A23*12,0),"") -> 
A24: 6 | B24: =IF('General input data'!A18<>"",'General input data'!A18,"") ->  | C24: =IF('General input data'!B18<>"",'General input data'!B18,"") ->  | D24: =IF('General input data'!C18<>"",'General input data'!C18,"") ->  | E24: =IF('General input data'!D18<>"",'General input data'!D18,"") ->  | F24: =IF('General input data'!E18<>"",'General input data'!E18,"") ->  | G24: =IF(F24<>0,OFFSET('2b Prevented emissions -details'!$I$69,A24*12,0),"") ->  | H24: =IF(F24<>"",OFFSET('2b Prevented emissions -details'!$K$69,A24*12,0),"") ->  | I24: =IF(D24<>"",OFFSET('2b Prevented emissions -details'!$N$69,12*A24,0),"") ->  | J24: =IF(F24<>"",OFFSET('2b Prevented emissions -details'!$P$69,A24*12,0),"") ->  | K24: =IF(F24<>"",OFFSET('2b Prevented emissions -details'!$S$69,A24*12,0),"") ->  | L24: =IF(F24<>"",OFFSET('2b Prevented emissions -details'!$R$69,A24*12,0),"") -> 
A25: 7 | B25: =IF('General input data'!A19<>"",'General input data'!A19,"") ->  | C25: =IF('General input data'!B19<>"",'General input data'!B19,"") ->  | D25: =IF('General input data'!C19<>"",'General input data'!C19,"") ->  | E25: =IF('General input data'!D19<>"",'General input data'!D19,"") ->  | F25: =IF('General input data'!E19<>"",'General input data'!E19,"") ->  | G25: =IF(F25<>0,OFFSET('2b Prevented emissions -details'!$I$69,A25*12,0),"") ->  | H25: =IF(F25<>"",OFFSET('2b Prevented emissions -details'!$K$69,A25*12,0),"") ->  | I25: =IF(D25<>"",OFFSET('2b Prevented emissions -details'!$N$69,12*A25,0),"") ->  | J25: =IF(F25<>"",OFFSET('2b Prevented emissions -details'!$P$69,A25*12,0),"") ->  | K25: =IF(F25<>"",OFFSET('2b Prevented emissions -details'!$S$69,A25*12,0),"") ->  | L25: =IF(F25<>"",OFFSET('2b Prevented emissions -details'!$R$69,A25*12,0),"") -> 
A26: 8 | B26: =IF('General input data'!A20<>"",'General input data'!A20,"") ->  | C26: =IF('General input data'!B20<>"",'General input data'!B20,"") ->  | D26: =IF('General input data'!C20<>"",'General input data'!C20,"") ->  | E26: =IF('General input data'!D20<>"",'General input data'!D20,"") ->  | F26: =IF('General input data'!E20<>"",'General input data'!E20,"") ->  | G26: =IF(F26<>0,OFFSET('2b Prevented emissions -details'!$I$69,A26*12,0),"") ->  | H26: =IF(F26<>"",OFFSET('2b Prevented emissions -details'!$K$69,A26*12,0),"") ->  | I26: =IF(D26<>"",OFFSET('2b Prevented emissions -details'!$N$69,12*A26,0),"") ->  | J26: =IF(F26<>"",OFFSET('2b Prevented emissions -details'!$P$69,A26*12,0),"") ->  | K26: =IF(F26<>"",OFFSET('2b Prevented emissions -details'!$S$69,A26*12,0),"") ->  | L26: =IF(F26<>"",OFFSET('2b Prevented emissions -details'!$R$69,A26*12,0),"") -> 
A27: 9 | B27: =IF('General input data'!A21<>"",'General input data'!A21,"") ->  | C27: =IF('General input data'!B21<>"",'General input data'!B21,"") ->  | D27: =IF('General input data'!C21<>"",'General input data'!C21,"") ->  | E27: =IF('General input data'!D21<>"",'General input data'!D21,"") ->  | F27: =IF('General input data'!E21<>"",'General input data'!E21,"") ->  | G27: =IF(F27<>0,OFFSET('2b Prevented emissions -details'!$I$69,A27*12,0),"") ->  | H27: =IF(F27<>"",OFFSET('2b Prevented emissions -details'!$K$69,A27*12,0),"") ->  | I27: =IF(D27<>"",OFFSET('2b Prevented emissions -details'!$N$69,12*A27,0),"") ->  | J27: =IF(F27<>"",OFFSET('2b Prevented emissions -details'!$P$69,A27*12,0),"") ->  | K27: =IF(F27<>"",OFFSET('2b Prevented emissions -details'!$S$69,A27*12,0),"") ->  | L27: =IF(F27<>"",OFFSET('2b Prevented emissions -details'!$R$69,A27*12,0),"") -> 
A28: 10 | B28: =IF('General input data'!A22<>"",'General input data'!A22,"") ->  | C28: =IF('General input data'!B22<>"",'General input data'!B22,"") ->  | D28: =IF('General input data'!C22<>"",'General input data'!C22,"") ->  | E28: =IF('General input data'!D22<>"",'General input data'!D22,"") ->  | F28: =IF('General input data'!E22<>"",'General input data'!E22,"") ->  | G28: =IF(F28<>0,OFFSET('2b Prevented emissions -details'!$I$69,A28*12,0),"") ->  | H28: =IF(F28<>"",OFFSET('2b Prevented emissions -details'!$K$69,A28*12,0),"") ->  | I28: =IF(D28<>"",OFFSET('2b Prevented emissions -details'!$N$69,12*A28,0),"") ->  | J28: =IF(F28<>"",OFFSET('2b Prevented emissions -details'!$P$69,A28*12,0),"") ->  | K28: =IF(F28<>"",OFFSET('2b Prevented emissions -details'!$S$69,A28*12,0),"") ->  | L28: =IF(F28<>"",OFFSET('2b Prevented emissions -details'!$R$69,A28*12,0),"") -> 
A29: 11 | B29: =IF('General input data'!A23<>"",'General input data'!A23,"") ->  | C29: =IF('General input data'!B23<>"",'General input data'!B23,"") ->  | D29: =IF('General input data'!C23<>"",'General input data'!C23,"") ->  | E29: =IF('General input data'!D23<>"",'General input data'!D23,"") ->  | F29: =IF('General input data'!E23<>"",'General input data'!E23,"") ->  | G29: =IF(F29<>0,OFFSET('2b Prevented emissions -details'!$I$69,A29*12,0),"") ->  | H29: =IF(F29<>"",OFFSET('2b Prevented emissions -details'!$K$69,A29*12,0),"") ->  | I29: =IF(D29<>"",OFFSET('2b Prevented emissions -details'!$N$69,12*A29,0),"") ->  | J29: =IF(F29<>"",OFFSET('2b Prevented emissions -details'!$P$69,A29*12,0),"") ->  | K29: =IF(F29<>"",OFFSET('2b Prevented emissions -details'!$S$69,A29*12,0),"") ->  | L29: =IF(F29<>"",OFFSET('2b Prevented emissions -details'!$R$69,A29*12,0),"") -> 
A30: 12 | B30: =IF('General input data'!A24<>"",'General input data'!A24,"") ->  | C30: =IF('General input data'!B24<>"",'General input data'!B24,"") ->  | D30: =IF('General input data'!C24<>"",'General input data'!C24,"") ->  | E30: =IF('General input data'!D24<>"",'General input data'!D24,"") ->  | F30: =IF('General input data'!E24<>"",'General input data'!E24,"") ->  | G30: =IF(F30<>0,OFFSET('2b Prevented emissions -details'!$I$69,A30*12,0),"") ->  | H30: =IF(F30<>"",OFFSET('2b Prevented emissions -details'!$K$69,A30*12,0),"") ->  | I30: =IF(D30<>"",OFFSET('2b Prevented emissions -details'!$N$69,12*A30,0),"") ->  | J30: =IF(F30<>"",OFFSET('2b Prevented emissions -details'!$P$69,A30*12,0),"") ->  | K30: =IF(F30<>"",OFFSET('2b Prevented emissions -details'!$S$69,A30*12,0),"") ->  | L30: =IF(F30<>"",OFFSET('2b Prevented emissions -details'!$R$69,A30*12,0),"") -> 
A31: 13 | B31: =IF('General input data'!A25<>"",'General input data'!A25,"") ->  | C31: =IF('General input data'!B25<>"",'General input data'!B25,"") ->  | D31: =IF('General input data'!C25<>"",'General input data'!C25,"") ->  | E31: =IF('General input data'!D25<>"",'General input data'!D25,"") ->  | F31: =IF('General input data'!E25<>"",'General input data'!E25,"") ->  | G31: =IF(F31<>0,OFFSET('2b Prevented emissions -details'!$I$69,A31*12,0),"") ->  | H31: =IF(F31<>"",OFFSET('2b Prevented emissions -details'!$K$69,A31*12,0),"") ->  | I31: =IF(D31<>"",OFFSET('2b Prevented emissions -details'!$N$69,12*A31,0),"") ->  | J31: =IF(F31<>"",OFFSET('2b Prevented emissions -details'!$P$69,A31*12,0),"") ->  | K31: =IF(F31<>"",OFFSET('2b Prevented emissions -details'!$S$69,A31*12,0),"") ->  | L31: =IF(F31<>"",OFFSET('2b Prevented emissions -details'!$R$69,A31*12,0),"") -> 
A32: 14 | B32: =IF('General input data'!A26<>"",'General input data'!A26,"") ->  | C32: =IF('General input data'!B26<>"",'General input data'!B26,"") ->  | D32: =IF('General input data'!C26<>"",'General input data'!C26,"") ->  | E32: =IF('General input data'!D26<>"",'General input data'!D26,"") ->  | F32: =IF('General input data'!E26<>"",'General input data'!E26,"") ->  | G32: =IF(F32<>0,OFFSET('2b Prevented emissions -details'!$I$69,A32*12,0),"") ->  | H32: =IF(F32<>"",OFFSET('2b Prevented emissions -details'!$K$69,A32*12,0),"") ->  | I32: =IF(D32<>"",OFFSET('2b Prevented emissions -details'!$N$69,12*A32,0),"") ->  | J32: =IF(F32<>"",OFFSET('2b Prevented emissions -details'!$P$69,A32*12,0),"") ->  | K32: =IF(F32<>"",OFFSET('2b Prevented emissions -details'!$S$69,A32*12,0),"") ->  | L32: =IF(F32<>"",OFFSET('2b Prevented emissions -details'!$R$69,A32*12,0),"") -> 
A33: 15 | B33: =IF('General input data'!A27<>"",'General input data'!A27,"") ->  | C33: =IF('General input data'!B27<>"",'General input data'!B27,"") ->  | D33: =IF('General input data'!C27<>"",'General input data'!C27,"") ->  | E33: =IF('General input data'!D27<>"",'General input data'!D27,"") ->  | F33: =IF('General input data'!E27<>"",'General input data'!E27,"") ->  | G33: =IF(F33<>0,OFFSET('2b Prevented emissions -details'!$I$69,A33*12,0),"") ->  | H33: =IF(F33<>"",OFFSET('2b Prevented emissions -details'!$K$69,A33*12,0),"") ->  | I33: =IF(D33<>"",OFFSET('2b Prevented emissions -details'!$N$69,12*A33,0),"") ->  | J33: =IF(F33<>"",OFFSET('2b Prevented emissions -details'!$P$69,A33*12,0),"") ->  | K33: =IF(F33<>"",OFFSET('2b Prevented emissions -details'!$S$69,A33*12,0),"") ->  | L33: =IF(F33<>"",OFFSET('2b Prevented emissions -details'!$R$69,A33*12,0),"") -> 
A34: 16 | B34: =IF('General input data'!A28<>"",'General input data'!A28,"") ->  | C34: =IF('General input data'!B28<>"",'General input data'!B28,"") ->  | D34: =IF('General input data'!C28<>"",'General input data'!C28,"") ->  | E34: =IF('General input data'!D28<>"",'General input data'!D28,"") ->  | F34: =IF('General input data'!E28<>"",'General input data'!E28,"") ->  | G34: =IF(F34<>0,OFFSET('2b Prevented emissions -details'!$I$69,A34*12,0),"") ->  | H34: =IF(F34<>"",OFFSET('2b Prevented emissions -details'!$K$69,A34*12,0),"") ->  | I34: =IF(D34<>"",OFFSET('2b Prevented emissions -details'!$N$69,12*A34,0),"") ->  | J34: =IF(F34<>"",OFFSET('2b Prevented emissions -details'!$P$69,A34*12,0),"") ->  | K34: =IF(F34<>"",OFFSET('2b Prevented emissions -details'!$S$69,A34*12,0),"") ->  | L34: =IF(F34<>"",OFFSET('2b Prevented emissions -details'!$R$69,A34*12,0),"") -> 
A35: 17 | B35: =IF('General input data'!A29<>"",'General input data'!A29,"") ->  | C35: =IF('General input data'!B29<>"",'General input data'!B29,"") ->  | D35: =IF('General input data'!C29<>"",'General input data'!C29,"") ->  | E35: =IF('General input data'!D29<>"",'General input data'!D29,"") ->  | F35: =IF('General input data'!E29<>"",'General input data'!E29,"") ->  | G35: =IF(F35<>0,OFFSET('2b Prevented emissions -details'!$I$69,A35*12,0),"") ->  | H35: =IF(F35<>"",OFFSET('2b Prevented emissions -details'!$K$69,A35*12,0),"") ->  | I35: =IF(D35<>"",OFFSET('2b Prevented emissions -details'!$N$69,12*A35,0),"") ->  | J35: =IF(F35<>"",OFFSET('2b Prevented emissions -details'!$P$69,A35*12,0),"") ->  | K35: =IF(F35<>"",OFFSET('2b Prevented emissions -details'!$S$69,A35*12,0),"") ->  | L35: =IF(F35<>"",OFFSET('2b Prevented emissions -details'!$R$69,A35*12,0),"") -> 
A36: 18 | B36: =IF('General input data'!A30<>"",'General input data'!A30,"") ->  | C36: =IF('General input data'!B30<>"",'General input data'!B30,"") ->  | D36: =IF('General input data'!C30<>"",'General input data'!C30,"") ->  | E36: =IF('General input data'!D30<>"",'General input data'!D30,"") ->  | F36: =IF('General input data'!E30<>"",'General input data'!E30,"") ->  | G36: =IF(F36<>0,OFFSET('2b Prevented emissions -details'!$I$69,A36*12,0),"") ->  | H36: =IF(F36<>"",OFFSET('2b Prevented emissions -details'!$K$69,A36*12,0),"") ->  | I36: =IF(D36<>"",OFFSET('2b Prevented emissions -details'!$N$69,12*A36,0),"") ->  | J36: =IF(F36<>"",OFFSET('2b Prevented emissions -details'!$P$69,A36*12,0),"") ->  | K36: =IF(F36<>"",OFFSET('2b Prevented emissions -details'!$S$69,A36*12,0),"") ->  | L36: =IF(F36<>"",OFFSET('2b Prevented emissions -details'!$R$69,A36*12,0),"") -> 
A37: 19 | B37: =IF('General input data'!A31<>"",'General input data'!A31,"") ->  | C37: =IF('General input data'!B31<>"",'General input data'!B31,"") ->  | D37: =IF('General input data'!C31<>"",'General input data'!C31,"") ->  | E37: =IF('General input data'!D31<>"",'General input data'!D31,"") ->  | F37: =IF('General input data'!E31<>"",'General input data'!E31,"") ->  | G37: =IF(F37<>0,OFFSET('2b Prevented emissions -details'!$I$69,A37*12,0),"") ->  | H37: =IF(F37<>"",OFFSET('2b Prevented emissions -details'!$K$69,A37*12,0),"") ->  | I37: =IF(D37<>"",OFFSET('2b Prevented emissions -details'!$N$69,12*A37,0),"") ->  | J37: =IF(F37<>"",OFFSET('2b Prevented emissions -details'!$P$69,A37*12,0),"") ->  | K37: =IF(F37<>"",OFFSET('2b Prevented emissions -details'!$S$69,A37*12,0),"") ->  | L37: =IF(F37<>"",OFFSET('2b Prevented emissions -details'!$R$69,A37*12,0),"") -> 
A38: 20 | B38: =IF('General input data'!A32<>"",'General input data'!A32,"") ->  | C38: =IF('General input data'!B32<>"",'General input data'!B32,"") ->  | D38: =IF('General input data'!C32<>"",'General input data'!C32,"") ->  | E38: =IF('General input data'!D32<>"",'General input data'!D32,"") ->  | F38: =IF('General input data'!E32<>"",'General input data'!E32,"") ->  | G38: =IF(F38<>0,OFFSET('2b Prevented emissions -details'!$I$69,A38*12,0),"") ->  | H38: =IF(F38<>"",OFFSET('2b Prevented emissions -details'!$K$69,A38*12,0),"") ->  | I38: =IF(D38<>"",OFFSET('2b Prevented emissions -details'!$N$69,12*A38,0),"") ->  | J38: =IF(F38<>"",OFFSET('2b Prevented emissions -details'!$P$69,A38*12,0),"") ->  | K38: =IF(F38<>"",OFFSET('2b Prevented emissions -details'!$S$69,A38*12,0),"") ->  | L38: =IF(F38<>"",OFFSET('2b Prevented emissions -details'!$R$69,A38*12,0),"") -> 
A39: 21 | B39: =IF('General input data'!A33<>"",'General input data'!A33,"") ->  | C39: =IF('General input data'!B33<>"",'General input data'!B33,"") ->  | D39: =IF('General input data'!C33<>"",'General input data'!C33,"") ->  | E39: =IF('General input data'!D33<>"",'General input data'!D33,"") ->  | F39: =IF('General input data'!E33<>"",'General input data'!E33,"") ->  | G39: =IF(F39<>0,OFFSET('2b Prevented emissions -details'!$I$69,A39*12,0),"") ->  | H39: =IF(F39<>"",OFFSET('2b Prevented emissions -details'!$K$69,A39*12,0),"") ->  | I39: =IF(D39<>"",OFFSET('2b Prevented emissions -details'!$N$69,12*A39,0),"") ->  | J39: =IF(F39<>"",OFFSET('2b Prevented emissions -details'!$P$69,A39*12,0),"") ->  | K39: =IF(F39<>"",OFFSET('2b Prevented emissions -details'!$S$69,A39*12,0),"") ->  | L39: =IF(F39<>"",OFFSET('2b Prevented emissions -details'!$R$69,A39*12,0),"") -> 
A40: 22 | B40: =IF('General input data'!A34<>"",'General input data'!A34,"") ->  | C40: =IF('General input data'!B34<>"",'General input data'!B34,"") ->  | D40: =IF('General input data'!C34<>"",'General input data'!C34,"") ->  | E40: =IF('General input data'!D34<>"",'General input data'!D34,"") ->  | F40: =IF('General input data'!E34<>"",'General input data'!E34,"") ->  | G40: =IF(F40<>0,OFFSET('2b Prevented emissions -details'!$I$69,A40*12,0),"") ->  | H40: =IF(F40<>"",OFFSET('2b Prevented emissions -details'!$K$69,A40*12,0),"") ->  | I40: =IF(D40<>"",OFFSET('2b Prevented emissions -details'!$N$69,12*A40,0),"") ->  | J40: =IF(F40<>"",OFFSET('2b Prevented emissions -details'!$P$69,A40*12,0),"") ->  | K40: =IF(F40<>"",OFFSET('2b Prevented emissions -details'!$S$69,A40*12,0),"") ->  | L40: =IF(F40<>"",OFFSET('2b Prevented emissions -details'!$R$69,A40*12,0),"") -> 
A41: 23 | B41: =IF('General input data'!A35<>"",'General input data'!A35,"") ->  | C41: =IF('General input data'!B35<>"",'General input data'!B35,"") ->  | D41: =IF('General input data'!C35<>"",'General input data'!C35,"") ->  | E41: =IF('General input data'!D35<>"",'General input data'!D35,"") ->  | F41: =IF('General input data'!E35<>"",'General input data'!E35,"") ->  | G41: =IF(F41<>0,OFFSET('2b Prevented emissions -details'!$I$69,A41*12,0),"") ->  | H41: =IF(F41<>"",OFFSET('2b Prevented emissions -details'!$K$69,A41*12,0),"") ->  | I41: =IF(D41<>"",OFFSET('2b Prevented emissions -details'!$N$69,12*A41,0),"") ->  | J41: =IF(F41<>"",OFFSET('2b Prevented emissions -details'!$P$69,A41*12,0),"") ->  | K41: =IF(F41<>"",OFFSET('2b Prevented emissions -details'!$S$69,A41*12,0),"") ->  | L41: =IF(F41<>"",OFFSET('2b Prevented emissions -details'!$R$69,A41*12,0),"") -> 
B42: TOTALS | D42: =SUM(D18:D41) -> 200 | F42: =SUM(F18:F41) -> 200 | H42: =SUM(H18:H41) -> -170 | J42: =SUM(J18:J41) -> -40 | K42: =-L42/F42 -> 1.05 | L42: =SUM(L18:L41) -> -210

Sheet 2b Prevented emissions -details
A1: Component 2b: Prevented emissions - Detailed calculations
A3: This sheet is to enter details for each identified use of each identified products category. Details are summarized on the previous sheet.
A5: Prevented emissions refers to the emissions that would be caused by counterfactual non-wood based products.
B6: Prevented emissions is ONLY calculated for products volumes marketed by the corporation in the defined time period. Internally used biomass (eg for energy) does not render any prevented emissions.
B7: Marketed wood-based products may be produced by virgin wood material, recycled material or a mix of the two. Prevented emissions calculations do not distinguish between the source of wood-based material used.
B8: Displacement Factors (DFs) are calculated for equal functional units and normally refers to the biogenic carbon mass (CO2e) of the wood based product / Cradle to Gate emissions of the alternative product (CO2e), ie a unitless factor.
B9: Differences in between wood/non-wood products regarding user phase emissions (gate to grave) may be included as well. These can be higher or lower for the wood-based product
B10: Prevented emissions are calulated for the first use of marketed wood-based products and for the final use for energy for the corresponding products during the time period in question
B11: Prevented emissions from downstream recycled uses are not included. (Although all products marketed by a corporation are assigned a first-use DF, regardless of the proportion of recycled material used, see above)
A13: Assessment starts from the product categories on the General input data, which are automatically copied
A14: Then for each product category:
A15: 1. Identify product uses to include in the assessment
A16: 2. Assign Displacement Factor for the First Use of each product use
A17: 3. Assign proportion of volume that leads to First Use prevented emisisons (ie excluding spill and other inefficiencies)
A18: 4. Assign Displacement Factor for Final use for energy for recovered product material (usually as energy)
A19: 5. Assign proportion of volume that leads to Final Use during the time period (possibly using inflow/outflow assumptions for long lived products)
A20: Note
A21: Default (Tier 1) DFs are provided on this sheet. Own DFs (Tier 2) can be calculated from LCAs/EPDs or other research literature.
A22: Given that several corporations along the value chain can assess DF based on the same products/material, DFs across corporations cannot be added without considering possible doublecounting.
B24: Displacement Factors
B25: For references of displacement factors, see separate list available at the webpage for CLEAR:
B26: https://www.skogforsk.se/CLEAR
B28: Product category | C28: Displaced product | D28: Displacement factor tCO2e/tCO2e | E28: Remarks
B29: 1. Default factors when corporate-specific data are not available (Tier 1)
B30: Roundwood | C30: Combination of marketed products after processing | D30: 0.5 | E30: For volume under bark. Assumes that roundwood is used as sawnwood to the extent possible and for fibre based products and energy for the remaining biomass.
B31: Sawn wood | C31: Various non-wood construction materials | D31: 1.2 | E31: Can be used for general applications of first uses for sawn wood. Some uses lead to highe DFs (eg windows, doors), some to lower (eg pallets)
B32: Wood-based panels | C32: Various non-wood materials | D32: 1 | E32: Can be used for general applications of panels for first use
B33: Paper packaging | C33: Packaging from plastic, glass or metal | D33: 1 | E33: Displacement of glass and metal packaging generally renders higher displacement factors, but are not distinguished here
B34: Other fibre based products | C34: None identified | D34: 0 | E34: Many fibre based products will render displacement sometimes with high DFs, but are not distinguished in this indicative list. However, generally final use for energy recovery will lead to displacement.
B35: Bioenergy products (solid products, heat or electricity) | C35: Corresponding energy product based on fossil fuels | D35: 0.8 | E35: Depending on the fossil fuel displaced, the displacement factor can b higher or lower, but this is not distinguished here
B36: Liquid biofuels | C36: Corresponding liquid fossil fuel | D36: 1.2 | E36: Emissions from fossil fuel include emissions from upstream extraction and refining
B37: 2. Corporate-specific factors used in this assessment
B48: Colour coding:
B49: Cells where data are entered manually
B50: Cells where data is copied/calculated based on other cells - NO manual input to be made in these cells
B51: Cells where constants / conversion factors are provided
B52: Cells with no data
B54: ='General input data'!A9 -> Time period XXX
B55: Product category | E55: Product uses considered | I55: First use | N55: Final use (energy) | R55: Assessed prevented emissions | S55: Assessed DF for Product category
C56: Total volume | F56: Fraction of total volume | G56: Volume delivered for this use | I56: Displacement Factor | J56: Fraction of use volume leading to prevented emissions | K56: Assessed prevented emissions | L56: Recycling rate on total product volume | M56: Comment/assumptions | N56: Displacement Factor | O56: Fraction of use volume leading to prevented emissions | P56: Assessed prevented emissions | Q56: Comment/assumptions | S56: Weighted Overall Displacement Factor over total category volume
C57: in market unit | D57: tCO2e | F57: 0..1 | G57: in market unit | H57: tCO2e | I57: tCO2e/tCO2e | J57: 0..1 | K57: tCO2e | L57: 0..1 | N57: tCO2e/tCO2e | O57: 0..1 | P57: tCO2e | R57: tCO2e | S57: tCO2e/tCO2e
A58: 0 | B58: =IF(OFFSET('General input data'!A$12,A58,0)<>"",OFFSET('General input data'!A$12,A58,0),"") -> Product category 1 | C58: =IF(OFFSET('General input data'!C$12,A58,0)<>"",OFFSET('General input data'!C$12,A58,0),"") -> 100 | D58: =IF(OFFSET('General input data'!E$12,A58,0)<>"",OFFSET('General input data'!E$12,A58,0),"") -> 100 | E58: Product use 1 | F58: 0.2 | G58: =IF(F58>0,C$58*F58,"") -> 20 | H58: =IF(F58>0,D$58*F58,"") -> 20 | I58: 1 | J58: 1 | K58: =IF(J58<>"",-I58*J58*H58,"") -> -20 | L58: 1 | N58: 1 | O58: 0.2 | P58: =IF(O58<>"",-N58*O58*H58,"") -> -4 | R58: =IF(H58<>"",K58+P58,"") -> -24
E59: Product use 2 | F59: 0.3 | G59: =IF(F59>0,C$58*F59,"") -> 30 | H59: =IF(F59>0,D$58*F59,"") -> 30 | I59: 1 | J59: 1 | K59: =IF(J59<>"",-I59*J59*H59,"") -> -30 | L59: 0 | N59: 1 | O59: 0.3 | P59: =IF(O59<>"",-N59*O59*H59,"") -> -9 | R59: =IF(H59<>"",K59+P59,"") -> -39
E60: Product use 3 | F60: 0.5 | G60: 50 | H60: 50 | I60: 1 | J60: 1 | K60: =IF(J60<>"",-I60*J60*H60,"") -> -50 | N60: 1 | O60: 0.4 | P60: =IF(O60<>"",-N60*O60*H60,"") -> -20 | R60: =IF(H60<>"",K60+P60,"") -> -70
R61: =IF(H61<>"",K61+P61,"") -> 
H68: =IF(F68*$D$58>0,F68*$D$58,"") ->  | M68: Fraction with no first use identified: | N68: 1 | O68: =IF(D58<>"",(1-F69),"") -> 0 | P68: =IF(O68<>"",O68*D58,"") -> 0
E69: Total/weighted average: | F69: =IF(SUM(F58:F68)>0,SUM(F58:F68),"") -> 1 | G69: =IF(SUM(G58:G68)>0,SUM(G58:G68),"") -> 100 | H69: 100 | I69: =IF(D58<>"",K69/D58,"") -> -1 | K69: =IF(D58<>"",SUM(K58:K67),"") -> -100 | L69: =IF(D58<>"",SUMPRODUCT('[1]2b Prevented emissions -details'!F58:F59,L58:L59),"") -> 0.3 | N69: =IF(D58<>"",P69/D58,"") -> -0.33 | P69: =IF(D58<>"",SUM(P58:P68),"") -> -33 | R69: =IF(D58<>"",SUM(R58:R68),"") -> -133 | S69: =IF(D58<>"",I69+N69,"") -> -1.33
A70: 1 | B70: =IF(OFFSET('General input data'!A$12,A70,0)<>"",OFFSET('General input data'!A$12,A70,0),"") -> Product category 2 | C70: =IF(OFFSET('General input data'!C$12,A70,0)<>"",OFFSET('General input data'!C$12,A70,0),"") -> 100 | D70: =IF(OFFSET('General input data'!E$12,A70,0)<>"",OFFSET('General input data'!E$12,A70,0),"") -> 100 | E70: Product use 1 | F70: 0.2 | G70: =IF(F70>0,C$70*F70,"") -> 20 | H70: =IF(F70>0,D$70*F70,"") -> 20 | I70: 1 | J70: 0.7 | K70: =IF(J70<>"",-I70*J70*H70,"") -> -14 | N70: 0.7 | O70: 0.1 | P70: =IF(O70<>"",-N70*O70*H70,"") -> -1.4 | R70: =IF(H70<>"",K70+P70,"") -> -15.4
E71: Product use 2 | F71: 0.3 | G71: =IF(F71>0,C$70*F71,"") -> 30 | H71: =IF(F71>0,D$70*F71,"") -> 30 | I71: 1 | J71: 0.7 | K71: =IF(J71<>"",-I71*J71*H71,"") -> -21 | N71: 0.7 | O71: 0.1 | P71: =IF(O71<>"",-N71*O71*H71,"") -> -2.1 | R71: =IF(H71<>"",K71+P71,"") -> -23.1
E72: Product use 3 | F72: 0.5 | G72: 50 | H72: 50 | I72: 1 | J72: 0.7 | K72: =IF(J72<>"",-I72*J72*H72,"") -> -35 | N72: 0.7 | O72: 0.1 | P72: =IF(O72<>"",-N72*O72*H72,"") -> -3.5 | R72: =IF(H72<>"",K72+P72,"") -> -38.5
R73: =IF(H73<>"",K73+P73,"") -> 
H80: =IF(F80*$D$58>0,F80*$D$58,"") ->  | M80: Fraction with no first use identified: | N80: 1 | O80: =IF(D70<>"",(1-F81),"") -> 0 | P80: =IF(O80<>"",O80*D70,"") -> 0
E81: Total/weighted average: | F81: =IF(SUM(F70:F80)>0,SUM(F70:F80),"") -> 1 | G81: =IF(SUM(G70:G80)>0,SUM(G70:G80),"") -> 100 | H81: 100 | I81: =IF(D70<>"",K81/D70,"") -> -0.7 | K81: =IF(D70<>"",SUM(K70:K79),"") -> -70 | L81: =IF(D70<>"",SUMPRODUCT(F70:F71,L70:L71),"") -> 0 | N81: =IF(D70<>"",P81/D70,"") -> -0.07 | P81: =IF(D70<>"",SUM(P70:P80),"") -> -7 | R81: =IF(D70<>"",SUM(R70:R80),"") -> -77 | S81: =IF(D70<>"",I81+N81,"") -> -0.77
A82: 2 | B82: =IF(OFFSET('General input data'!A$12,A82,0)<>"",OFFSET('General input data'!A$12,A82,0),"") ->  | C82: =IF(OFFSET('General input data'!C$12,A82,0)<>"",OFFSET('General input data'!C$12,A82,0),"") ->  | D82: =IF(OFFSET('General input data'!E$12,A82,0)<>"",OFFSET('General input data'!E$12,A82,0),"") ->  | G82: =IF(F82>0,C$214*F82,"") ->  | H82: =IF(F82>0,D$214*F82,"") ->  | K82: =IF(J82<>"",-I82*J82*H82,"") ->  | P82: =IF(O82<>"",-N82*O82*H82,"") ->  | R82: =IF(H82<>"",K82+P82,"") -> 
G83: =IF(F83>0,C$214*F83,"") ->  | H83: =IF(F83>0,D$214*F83,"") ->  | K83: =IF(J83<>"",-I83*J83*H83,"") ->  | P83: =IF(O83<>"",-N83*O83*H83,"") ->  | R83: =IF(H83<>"",K83+P83,"") -> 
K84: =IF(J84<>"",-I84*J84*H84,"") ->  | P84: =IF(O84<>"",-N84*O84*H84,"") ->  | R84: =IF(H84<>"",K84+P84,"") -> 
R85: =IF(H85<>"",K85+P85,"") -> 
H92: =IF(F92*$D$58>0,F92*$D$58,"") ->  | M92: Fraction with no first use identified: | O92: =IF(D82<>"",(1-F93),"") ->  | P92: =IF(O92<>"",O92*D82,"") -> 
E93: Total/weighted average: | F93: =IF(SUM(F82:F92)>0,SUM(F82:F92),"") ->  | G93: =IF(SUM(G82:G92)>0,SUM(G82:G92),"") ->  | I93: =IF(D82<>"",K93/D82,"") ->  | K93: =IF(D82<>"",SUM(K82:K91),"") ->  | L93: =IF(D82<>"",SUMPRODUCT(F82:F83,L82:L83),"") ->  | N93: =IF(D82<>"",P93/D82,"") ->  | P93: =IF(D82<>"",SUM(P82:P92),"") ->  | R93: =IF(D82<>"",SUM(R82:R92),"") ->  | S93: =IF(D82<>"",I93+N93,"") -> 
A94: 3 | B94: =IF(OFFSET('General input data'!A$12,A94,0)<>"",OFFSET('General input data'!A$12,A94,0),"") ->  | C94: =IF(OFFSET('General input data'!C$12,A94,0)<>"",OFFSET('General input data'!C$12,A94,0),"") ->  | D94: =IF(OFFSET('General input data'!E$12,A94,0)<>"",OFFSET('General input data'!E$12,A94,0),"") ->  | G94: =IF(F94>0,C$214*F94,"") ->  | H94: =IF(F94>0,D$214*F94,"") ->  | K94: =IF(J94<>"",-I94*J94*H94,"") ->  | P94: =IF(O94<>"",-N94*O94*H94,"") ->  | R94: =IF(H94<>"",K94+P94,"") -> 
G95: =IF(F95>0,C$214*F95,"") ->  | H95: =IF(F95>0,D$214*F95,"") ->  | K95: =IF(J95<>"",-I95*J95*H95,"") ->  | P95: =IF(O95<>"",-N95*O95*H95,"") ->  | R95: =IF(H95<>"",K95+P95,"") -> 
K96: =IF(J96<>"",-I96*J96*H96,"") ->  | P96: =IF(O96<>"",-N96*O96*H96,"") ->  | R96: =IF(H96<>"",K96+P96,"") -> 
R97: =IF(H97<>"",K97+P97,"") -> 
H104: =IF(F104*$D$58>0,F104*$D$58,"") ->  | M104: Fraction with no first use identified: | O104: =IF(D94<>"",(1-F105),"") ->  | P104: =IF(O104<>"",O104*D94,"") -> 
E105: Total/weighted average: | F105: =IF(SUM(F94:F104)>0,SUM(F94:F104),"") ->  | G105: =IF(SUM(G94:G104)>0,SUM(G94:G104),"") ->  | I105: =IF(D94<>"",K105/D94,"") ->  | K105: =IF(D94<>"",SUM(K94:K103),"") ->  | L105: =IF(D94<>"",SUMPRODUCT(F94:F95,L94:L95),"") ->  | N105: =IF(D94<>"",P105/D94,"") ->  | P105: =IF(D94<>"",SUM(P94:P104),"") ->  | R105: =IF(D94<>"",SUM(R94:R104),"") ->  | S105: =IF(D94<>"",I105+N105,"") -> 
A106: 4 | B106: =IF(OFFSET('General input data'!A$12,A106,0)<>"",OFFSET('General input data'!A$12,A106,0),"") ->  | C106: =IF(OFFSET('General input data'!C$12,A106,0)<>"",OFFSET('General input data'!C$12,A106,0),"") ->  | D106: =IF(OFFSET('General input data'!E$12,A106,0)<>"",OFFSET('General input data'!E$12,A106,0),"") ->  | G106: =IF(F106>0,C$214*F106,"") ->  | H106: =IF(F106>0,D$214*F106,"") ->  | K106: =IF(J106<>"",-I106*J106*H106,"") ->  | P106: =IF(O106<>"",-N106*O106*H106,"") ->  | R106: =IF(H106<>"",K106+P106,"") -> 
G107: =IF(F107>0,C$214*F107,"") ->  | H107: =IF(F107>0,D$214*F107,"") ->  | K107: =IF(J107<>"",-I107*J107*H107,"") ->  | P107: =IF(O107<>"",-N107*O107*H107,"") ->  | R107: =IF(H107<>"",K107+P107,"") -> 
K108: =IF(J108<>"",-I108*J108*H108,"") ->  | P108: =IF(O108<>"",-N108*O108*H108,"") ->  | R108: =IF(H108<>"",K108+P108,"") -> 
R109: =IF(H109<>"",K109+P109,"") -> 
H116: =IF(F116*$D$58>0,F116*$D$58,"") ->  | M116: Fraction with no first use identified: | O116: =IF(D106<>"",(1-F117),"") ->  | P116: =IF(O116<>"",O116*D106,"") -> 
E117: Total/weighted average: | F117: =IF(SUM(F106:F116)>0,SUM(F106:F116),"") ->  | G117: =IF(SUM(G106:G116)>0,SUM(G106:G116),"") ->  | I117: =IF(D106<>"",K117/D106,"") ->  | K117: =IF(D106<>"",SUM(K106:K115),"") ->  | L117: =IF(D106<>"",SUMPRODUCT(F106:F107,L106:L107),"") ->  | N117: =IF(D106<>"",P117/D106,"") ->  | P117: =IF(D106<>"",SUM(P106:P116),"") ->  | R117: =IF(D106<>"",SUM(R106:R116),"") ->  | S117: =IF(D106<>"",I117+N117,"") -> 
A118: 5 | B118: =IF(OFFSET('General input data'!A$12,A118,0)<>"",OFFSET('General input data'!A$12,A118,0),"") ->  | C118: =IF(OFFSET('General input data'!C$12,A118,0)<>"",OFFSET('General input data'!C$12,A118,0),"") ->  | D118: =IF(OFFSET('General input data'!E$12,A118,0)<>"",OFFSET('General input data'!E$12,A118,0),"") ->  | G118: =IF(F118>0,C$214*F118,"") ->  | H118: =IF(F118>0,D$214*F118,"") ->  | K118: =IF(J118<>"",-I118*J118*H118,"") ->  | P118: =IF(O118<>"",-N118*O118*H118,"") ->  | R118: =IF(H118<>"",K118+P118,"") -> 
G119: =IF(F119>0,C$214*F119,"") ->  | H119: =IF(F119>0,D$214*F119,"") ->  | K119: =IF(J119<>"",-I119*J119*H119,"") ->  | P119: =IF(O119<>"",-N119*O119*H119,"") ->  | R119: =IF(H119<>"",K119+P119,"") -> 
K120: =IF(J120<>"",-I120*J120*H120,"") ->  | P120: =IF(O120<>"",-N120*O120*H120,"") ->  | R120: =IF(H120<>"",K120+P120,"") -> 
R121: =IF(H121<>"",K121+P121,"") -> 
H128: =IF(F128*$D$58>0,F128*$D$58,"") ->  | M128: Fraction with no first use identified: | O128: =IF(D118<>"",(1-F129),"") ->  | P128: =IF(O128<>"",O128*D118,"") -> 
E129: Total/weighted average: | F129: =IF(SUM(F118:F128)>0,SUM(F118:F128),"") ->  | G129: =IF(SUM(G118:G128)>0,SUM(G118:G128),"") ->  | I129: =IF(D118<>"",K129/D118,"") ->  | K129: =IF(D118<>"",SUM(K118:K127),"") ->  | L129: =IF(D118<>"",SUMPRODUCT(F118:F119,L118:L119),"") ->  | N129: =IF(D118<>"",P129/D118,"") ->  | P129: =IF(D118<>"",SUM(P118:P128),"") ->  | R129: =IF(D118<>"",SUM(R118:R128),"") ->  | S129: =IF(D118<>"",I129+N129,"") -> 
A130: 6 | B130: =IF(OFFSET('General input data'!A$12,A130,0)<>"",OFFSET('General input data'!A$12,A130,0),"") ->  | C130: =IF(OFFSET('General input data'!C$12,A130,0)<>"",OFFSET('General input data'!C$12,A130,0),"") ->  | D130: =IF(OFFSET('General input data'!E$12,A130,0)<>"",OFFSET('General input data'!E$12,A130,0),"") ->  | G130: =IF(F130>0,C$214*F130,"") ->  | H130: =IF(F130>0,D$214*F130,"") ->  | K130: =IF(J130<>"",-I130*J130*H130,"") ->  | P130: =IF(O130<>"",-N130*O130*H130,"") ->  | R130: =IF(H130<>"",K130+P130,"") -> 
G131: =IF(F131>0,C$214*F131,"") ->  | H131: =IF(F131>0,D$214*F131,"") ->  | K131: =IF(J131<>"",-I131*J131*H131,"") ->  | P131: =IF(O131<>"",-N131*O131*H131,"") ->  | R131: =IF(H131<>"",K131+P131,"") -> 
K132: =IF(J132<>"",-I132*J132*H132,"") ->  | P132: =IF(O132<>"",-N132*O132*H132,"") ->  | R132: =IF(H132<>"",K132+P132,"") -> 
R133: =IF(H133<>"",K133+P133,"") -> 
H140: =IF(F140*$D$58>0,F140*$D$58,"") ->  | M140: Fraction with no first use identified: | O140: =IF(D130<>"",(1-F141),"") ->  | P140: =IF(O140<>"",O140*D130,"") -> 
E141: Total/weighted average: | F141: =IF(SUM(F130:F140)>0,SUM(F130:F140),"") ->  | G141: =IF(SUM(G130:G140)>0,SUM(G130:G140),"") ->  | I141: =IF(D130<>"",K141/D130,"") ->  | K141: =IF(D130<>"",SUM(K130:K139),"") ->  | L141: =IF(D130<>"",SUMPRODUCT(F130:F131,L130:L131),"") ->  | N141: =IF(D130<>"",P141/D130,"") ->  | P141: =IF(D130<>"",SUM(P130:P140),"") ->  | R141: =IF(D130<>"",SUM(R130:R140),"") ->  | S141: =IF(D130<>"",I141+N141,"") -> 
A142: 7 | B142: =IF(OFFSET('General input data'!A$12,A142,0)<>"",OFFSET('General input data'!A$12,A142,0),"") ->  | C142: =IF(OFFSET('General input data'!C$12,A142,0)<>"",OFFSET('General input data'!C$12,A142,0),"") ->  | D142: =IF(OFFSET('General input data'!E$12,A142,0)<>"",OFFSET('General input data'!E$12,A142,0),"") ->  | G142: =IF(F142>0,C$214*F142,"") ->  | H142: =IF(F142>0,D$214*F142,"") ->  | K142: =IF(J142<>"",-I142*J142*H142,"") ->  | P142: =IF(O142<>"",-N142*O142*H142,"") ->  | R142: =IF(H142<>"",K142+P142,"") -> 
G143: =IF(F143>0,C$214*F143,"") ->  | H143: =IF(F143>0,D$214*F143,"") ->  | K143: =IF(J143<>"",-I143*J143*H143,"") ->  | P143: =IF(O143<>"",-N143*O143*H143,"") ->  | R143: =IF(H143<>"",K143+P143,"") -> 
K144: =IF(J144<>"",-I144*J144*H144,"") ->  | P144: =IF(O144<>"",-N144*O144*H144,"") ->  | R144: =IF(H144<>"",K144+P144,"") -> 
R145: =IF(H145<>"",K145+P145,"") -> 
H152: =IF(F152*$D$58>0,F152*$D$58,"") ->  | M152: Fraction with no first use identified: | O152: =IF(D142<>"",(1-F153),"") ->  | P152: =IF(O152<>"",O152*D142,"") -> 
E153: Total/weighted average: | F153: =IF(SUM(F142:F152)>0,SUM(F142:F152),"") ->  | G153: =IF(SUM(G142:G152)>0,SUM(G142:G152),"") ->  | I153: =IF(D142<>"",K153/D142,"") ->  | K153: =IF(D142<>"",SUM(K142:K151),"") ->  | L153: =IF(D142<>"",SUMPRODUCT(F142:F143,L142:L143),"") ->  | N153: =IF(D142<>"",P153/D142,"") ->  | P153: =IF(D142<>"",SUM(P142:P152),"") ->  | R153: =IF(D142<>"",SUM(R142:R152),"") ->  | S153: =IF(D142<>"",I153+N153,"") -> 
A154: 8 | B154: =IF(OFFSET('General input data'!A$12,A154,0)<>"",OFFSET('General input data'!A$12,A154,0),"") ->  | C154: =IF(OFFSET('General input data'!C$12,A154,0)<>"",OFFSET('General input data'!C$12,A154,0),"") ->  | D154: =IF(OFFSET('General input data'!E$12,A154,0)<>"",OFFSET('General input data'!E$12,A154,0),"") ->  | G154: =IF(F154>0,C$214*F154,"") ->  | H154: =IF(F154>0,D$214*F154,"") ->  | K154: =IF(J154<>"",-I154*J154*H154,"") ->  | P154: =IF(O154<>"",-N154*O154*H154,"") ->  | R154: =IF(H154<>"",K154+P154,"") -> 
G155: =IF(F155>0,C$214*F155,"") ->  | H155: =IF(F155>0,D$214*F155,"") ->  | K155: =IF(J155<>"",-I155*J155*H155,"") ->  | P155: =IF(O155<>"",-N155*O155*H155,"") ->  | R155: =IF(H155<>"",K155+P155,"") -> 
K156: =IF(J156<>"",-I156*J156*H156,"") ->  | P156: =IF(O156<>"",-N156*O156*H156,"") ->  | R156: =IF(H156<>"",K156+P156,"") -> 
R157: =IF(H157<>"",K157+P157,"") -> 
H164: =IF(F164*$D$58>0,F164*$D$58,"") ->  | M164: Fraction with no first use identified: | O164: =IF(D154<>"",(1-F165),"") ->  | P164: =IF(O164<>"",O164*D154,"") -> 
E165: Total/weighted average: | F165: =IF(SUM(F154:F164)>0,SUM(F154:F164),"") ->  | G165: =IF(SUM(G154:G164)>0,SUM(G154:G164),"") ->  | I165: =IF(D154<>"",K165/D154,"") ->  | K165: =IF(D154<>"",SUM(K154:K163),"") ->  | L165: =IF(D154<>"",SUMPRODUCT(F154:F155,L154:L155),"") ->  | N165: =IF(D154<>"",P165/D154,"") ->  | P165: =IF(D154<>"",SUM(P154:P164),"") ->  | R165: =IF(D154<>"",SUM(R154:R164),"") ->  | S165: =IF(D154<>"",I165+N165,"") -> 
A166: 9 | B166: =IF(OFFSET('General input data'!A$12,A166,0)<>"",OFFSET('General input data'!A$12,A166,0),"") ->  | C166: =IF(OFFSET('General input data'!C$12,A166,0)<>"",OFFSET('General input data'!C$12,A166,0),"") ->  | D166: =IF(OFFSET('General input data'!E$12,A166,0)<>"",OFFSET('General input data'!E$12,A166,0),"") ->  | G166: =IF(F166>0,C$214*F166,"") ->  | H166: =IF(F166>0,D$214*F166,"") ->  | K166: =IF(J166<>"",-I166*J166*H166,"") ->  | P166: =IF(O166<>"",-N166*O166*H166,"") ->  | R166: =IF(H166<>"",K166+P166,"") -> 
G167: =IF(F167>0,C$214*F167,"") ->  | H167: =IF(F167>0,D$214*F167,"") ->  | K167: =IF(J167<>"",-I167*J167*H167,"") ->  | P167: =IF(O167<>"",-N167*O167*H167,"") ->  | R167: =IF(H167<>"",K167+P167,"") -> 
K168: =IF(J168<>"",-I168*J168*H168,"") ->  | P168: =IF(O168<>"",-N168*O168*H168,"") ->  | R168: =IF(H168<>"",K168+P168,"") -> 
R169: =IF(H169<>"",K169+P169,"") -> 
H176: =IF(F176*$D$58>0,F176*$D$58,"") ->  | M176: Fraction with no first use identified: | O176: =IF(D166<>"",(1-F177),"") ->  | P176: =IF(O176<>"",O176*D166,"") -> 
E177: Total/weighted average: | F177: =IF(SUM(F166:F176)>0,SUM(F166:F176),"") ->  | G177: =IF(SUM(G166:G176)>0,SUM(G166:G176),"") ->  | I177: =IF(D166<>"",K177/D166,"") ->  | K177: =IF(D166<>"",SUM(K166:K175),"") ->  | L177: =IF(D166<>"",SUMPRODUCT(F166:F167,L166:L167),"") ->  | N177: =IF(D166<>"",P177/D166,"") ->  | P177: =IF(D166<>"",SUM(P166:P176),"") ->  | R177: =IF(D166<>"",SUM(R166:R176),"") ->  | S177: =IF(D166<>"",I177+N177,"") -> 
A178: 10 | B178: =IF(OFFSET('General input data'!A$12,A178,0)<>"",OFFSET('General input data'!A$12,A178,0),"") ->  | C178: =IF(OFFSET('General input data'!C$12,A178,0)<>"",OFFSET('General input data'!C$12,A178,0),"") ->  | D178: =IF(OFFSET('General input data'!E$12,A178,0)<>"",OFFSET('General input data'!E$12,A178,0),"") ->  | G178: =IF(F178>0,C$178*F178,"") ->  | H178: =IF(F178>0,D$178*F178,"") ->  | K178: =IF(J178<>"",-I178*J178*H178,"") ->  | P178: =IF(O178<>"",-N178*O178*H178,"") ->  | R178: =IF(H178<>"",K178+P178,"") -> 
G179: =IF(F179>0,C$178*F179,"") ->  | H179: =IF(F179>0,D$178*F179,"") ->  | K179: =IF(J179<>"",-I179*J179*H179,"") ->  | P179: =IF(O179<>"",-N179*O179*H179,"") ->  | R179: =IF(H179<>"",K179+P179,"") -> 
K180: =IF(J180<>"",-I180*J180*H180,"") ->  | P180: =IF(O180<>"",-N180*O180*H180,"") ->  | R180: =IF(H180<>"",K180+P180,"") -> 
R181: =IF(H181<>"",K181+P181,"") -> 
H188: =IF(F188*$D$58>0,F188*$D$58,"") ->  | M188: Fraction with no first use identified: | O188: =IF(D178<>"",(1-F189),"") ->  | P188: =IF(O188<>"",O188*D178,"") -> 
E189: Total/weighted average: | F189: =IF(SUM(F178:F188)>0,SUM(F178:F188),"") ->  | G189: =IF(SUM(G178:G188)>0,SUM(G178:G188),"") ->  | I189: =IF(D178<>"",K189/D178,"") ->  | K189: =IF(D178<>"",SUM(K178:K187),"") ->  | L189: =IF(D178<>"",SUMPRODUCT(F178:F179,L178:L179),"") ->  | N189: =IF(D178<>"",P189/D178,"") ->  | P189: =IF(D178<>"",SUM(P178:P188),"") ->  | R189: =IF(D178<>"",SUM(R178:R188),"") ->  | S189: =IF(D178<>"",I189+N189,"") -> 
A190: 11 | B190: =IF(OFFSET('General input data'!A$12,A190,0)<>"",OFFSET('General input data'!A$12,A190,0),"") ->  | C190: =IF(OFFSET('General input data'!C$12,A190,0)<>"",OFFSET('General input data'!C$12,A190,0),"") ->  | D190: =IF(OFFSET('General input data'!E$12,A190,0)<>"",OFFSET('General input data'!E$12,A190,0),"") ->  | G190: =IF(F190>0,C$214*F190,"") ->  | H190: =IF(F190>0,D$214*F190,"") ->  | K190: =IF(J190<>"",-I190*J190*H190,"") ->  | P190: =IF(O190<>"",-N190*O190*H190,"") ->  | R190: =IF(H190<>"",K190+P190,"") -> 
G191: =IF(F191>0,C$214*F191,"") ->  | H191: =IF(F191>0,D$214*F191,"") ->  | K191: =IF(J191<>"",-I191*J191*H191,"") ->  | P191: =IF(O191<>"",-N191*O191*H191,"") ->  | R191: =IF(H191<>"",K191+P191,"") -> 
K192: =IF(J192<>"",-I192*J192*H192,"") ->  | P192: =IF(O192<>"",-N192*O192*H192,"") ->  | R192: =IF(H192<>"",K192+P192,"") -> 
R193: =IF(H193<>"",K193+P193,"") -> 
H200: =IF(F200*$D$58>0,F200*$D$58,"") ->  | M200: Fraction with no first use identified: | O200: =IF(D190<>"",(1-F201),"") ->  | P200: =IF(O200<>"",O200*D190,"") -> 
E201: Total/weighted average: | F201: =IF(SUM(F190:F200)>0,SUM(F190:F200),"") ->  | G201: =IF(SUM(G190:G200)>0,SUM(G190:G200),"") ->  | I201: =IF(D190<>"",K201/D190,"") ->  | K201: =IF(D190<>"",SUM(K190:K199),"") ->  | L201: =IF(D190<>"",SUMPRODUCT(F190:F191,L190:L191),"") ->  | N201: =IF(D190<>"",P201/D190,"") ->  | P201: =IF(D190<>"",SUM(P190:P200),"") ->  | R201: =IF(D190<>"",SUM(R190:R200),"") ->  | S201: =IF(D190<>"",I201+N201,"") -> 
A202: 12 | B202: =IF(OFFSET('General input data'!A$12,A202,0)<>"",OFFSET('General input data'!A$12,A202,0),"") ->  | C202: =IF(OFFSET('General input data'!C$12,A202,0)<>"",OFFSET('General input data'!C$12,A202,0),"") ->  | D202: =IF(OFFSET('General input data'!E$12,A202,0)<>"",OFFSET('General input data'!E$12,A202,0),"") ->  | G202: =IF(F202>0,C$214*F202,"") ->  | H202: =IF(F202>0,D$214*F202,"") ->  | K202: =IF(J202<>"",-I202*J202*H202,"") ->  | P202: =IF(O202<>"",-N202*O202*H202,"") ->  | R202: =IF(H202<>"",K202+P202,"") -> 
G203: =IF(F203>0,C$214*F203,"") ->  | H203: =IF(F203>0,D$214*F203,"") ->  | K203: =IF(J203<>"",-I203*J203*H203,"") ->  | P203: =IF(O203<>"",-N203*O203*H203,"") ->  | R203: =IF(H203<>"",K203+P203,"") -> 
K204: =IF(J204<>"",-I204*J204*H204,"") ->  | P204: =IF(O204<>"",-N204*O204*H204,"") ->  | R204: =IF(H204<>"",K204+P204,"") -> 
R205: =IF(H205<>"",K205+P205,"") -> 
H212: =IF(F212*$D$58>0,F212*$D$58,"") ->  | M212: Fraction with no first use identified: | O212: =IF(D202<>"",(1-F213),"") ->  | P212: =IF(O212<>"",O212*D202,"") -> 
E213: Total/weighted average: | F213: =IF(SUM(F202:F212)>0,SUM(F202:F212),"") ->  | G213: =IF(SUM(G202:G212)>0,SUM(G202:G212),"") ->  | I213: =IF(D202<>"",K213/D202,"") ->  | K213: =IF(D202<>"",SUM(K202:K211),"") ->  | L213: =IF(D202<>"",SUMPRODUCT(F202:F203,L202:L203),"") ->  | N213: =IF(D202<>"",P213/D202,"") ->  | P213: =IF(D202<>"",SUM(P202:P212),"") ->  | R213: =IF(D202<>"",SUM(R202:R212),"") ->  | S213: =IF(D202<>"",I213+N213,"") -> 
A214: 13 | B214: =IF(OFFSET('General input data'!A$12,A214,0)<>"",OFFSET('General input data'!A$12,A214,0),"") ->  | C214: =IF(OFFSET('General input data'!C$12,A214,0)<>"",OFFSET('General input data'!C$12,A214,0),"") ->  | D214: =IF(OFFSET('General input data'!E$12,A214,0)<>"",OFFSET('General input data'!E$12,A214,0),"") ->  | G214: =IF(F214>0,C$214*F214,"") ->  | H214: =IF(F214>0,D$214*F214,"") ->  | K214: =IF(J214<>"",-I214*J214*H214,"") ->  | P214: =IF(O214<>"",-N214*O214*H214,"") ->  | R214: =IF(H214<>"",K214+P214,"") -> 
G215: =IF(F215>0,C$214*F215,"") ->  | H215: =IF(F215>0,D$214*F215,"") ->  | K215: =IF(J215<>"",-I215*J215*H215,"") ->  | P215: =IF(O215<>"",-N215*O215*H215,"") ->  | R215: =IF(H215<>"",K215+P215,"") -> 
K216: =IF(J216<>"",-I216*J216*H216,"") ->  | P216: =IF(O216<>"",-N216*O216*H216,"") ->  | R216: =IF(H216<>"",K216+P216,"") -> 
R217: =IF(H217<>"",K217+P217,"") -> 
H224: =IF(F224*$D$58>0,F224*$D$58,"") ->  | M224: Fraction with no first use identified: | O224: =IF(D214<>"",(1-F225),"") ->  | P224: =IF(O224<>"",O224*D214,"") -> 
E225: Total/weighted average: | F225: =IF(SUM(F214:F224)>0,SUM(F214:F224),"") ->  | G225: =IF(SUM(G214:G224)>0,SUM(G214:G224),"") ->  | I225: =IF(D214<>"",K225/D214,"") ->  | K225: =IF(D214<>"",SUM(K214:K223),"") ->  | L225: =IF(D214<>"",SUMPRODUCT(F214:F215,L214:L215),"") ->  | N225: =IF(D214<>"",P225/D214,"") ->  | P225: =IF(D214<>"",SUM(P214:P224),"") ->  | R225: =IF(D214<>"",SUM(R214:R224),"") ->  | S225: =IF(D214<>"",I225+N225,"") -> 
A226: 14 | B226: =IF(OFFSET('General input data'!A$12,A226,0)<>"",OFFSET('General input data'!A$12,A226,0),"") ->  | C226: =IF(OFFSET('General input data'!C$12,A226,0)<>"",OFFSET('General input data'!C$12,A226,0),"") ->  | D226: =IF(OFFSET('General input data'!E$12,A226,0)<>"",OFFSET('General input data'!E$12,A226,0),"") ->  | G226: =IF(F226>0,C$214*F226,"") ->  | H226: =IF(F226>0,D$214*F226,"") ->  | K226: =IF(J226<>"",-I226*J226*H226,"") ->  | P226: =IF(O226<>"",-N226*O226*H226,"") ->  | R226: =IF(H226<>"",K226+P226,"") -> 
G227: =IF(F227>0,C$214*F227,"") ->  | H227: =IF(F227>0,D$214*F227,"") ->  | K227: =IF(J227<>"",-I227*J227*H227,"") ->  | P227: =IF(O227<>"",-N227*O227*H227,"") ->  | R227: =IF(H227<>"",K227+P227,"") -> 
K228: =IF(J228<>"",-I228*J228*H228,"") ->  | P228: =IF(O228<>"",-N228*O228*H228,"") ->  | R228: =IF(H228<>"",K228+P228,"") -> 
R229: =IF(H229<>"",K229+P229,"") -> 
H236: =IF(F236*$D$58>0,F236*$D$58,"") ->  | M236: Fraction with no first use identified: | O236: =IF(D226<>"",(1-F237),"") ->  | P236: =IF(O236<>"",O236*D226,"") -> 
E237: Total/weighted average: | F237: =IF(SUM(F226:F236)>0,SUM(F226:F236),"") ->  | G237: =IF(SUM(G226:G236)>0,SUM(G226:G236),"") ->  | I237: =IF(D226<>"",K237/D226,"") ->  | K237: =IF(D226<>"",SUM(K226:K235),"") ->  | L237: =IF(D226<>"",SUMPRODUCT(F226:F227,L226:L227),"") ->  | N237: =IF(D226<>"",P237/D226,"") ->  | P237: =IF(D226<>"",SUM(P226:P236),"") ->  | R237: =IF(D226<>"",SUM(R226:R236),"") ->  | S237: =IF(D226<>"",I237+N237,"") -> 
A238: 15 | B238: =IF(OFFSET('General input data'!A$12,A238,0)<>"",OFFSET('General input data'!A$12,A238,0),"") ->  | C238: =IF(OFFSET('General input data'!C$12,A238,0)<>"",OFFSET('General input data'!C$12,A238,0),"") ->  | D238: =IF(OFFSET('General input data'!E$12,A238,0)<>"",OFFSET('General input data'!E$12,A238,0),"") ->  | G238: =IF(F238>0,C$214*F238,"") ->  | H238: =IF(F238>0,D$214*F238,"") ->  | K238: =IF(J238<>"",-I238*J238*H238,"") ->  | P238: =IF(O238<>"",-N238*O238*H238,"") ->  | R238: =IF(H238<>"",K238+P238,"") -> 
G239: =IF(F239>0,C$214*F239,"") ->  | H239: =IF(F239>0,D$214*F239,"") ->  | K239: =IF(J239<>"",-I239*J239*H239,"") ->  | P239: =IF(O239<>"",-N239*O239*H239,"") ->  | R239: =IF(H239<>"",K239+P239,"") -> 
K240: =IF(J240<>"",-I240*J240*H240,"") ->  | P240: =IF(O240<>"",-N240*O240*H240,"") ->  | R240: =IF(H240<>"",K240+P240,"") -> 
R241: =IF(H241<>"",K241+P241,"") -> 
H248: =IF(F248*$D$58>0,F248*$D$58,"") ->  | M248: Fraction with no first use identified: | O248: =IF(D238<>"",(1-F249),"") ->  | P248: =IF(O248<>"",O248*D238,"") -> 
E249: Total/weighted average: | F249: =IF(SUM(F238:F248)>0,SUM(F238:F248),"") ->  | G249: =IF(SUM(G238:G248)>0,SUM(G238:G248),"") ->  | I249: =IF(D238<>"",K249/D238,"") ->  | K249: =IF(D238<>"",SUM(K238:K247),"") ->  | L249: =IF(D238<>"",SUMPRODUCT(F238:F239,L238:L239),"") ->  | N249: =IF(D238<>"",P249/D238,"") ->  | P249: =IF(D238<>"",SUM(P238:P248),"") ->  | R249: =IF(D238<>"",SUM(R238:R248),"") ->  | S249: =IF(D238<>"",I249+N249,"") -> 
A250: 16 | B250: =IF(OFFSET('General input data'!A$12,A250,0)<>"",OFFSET('General input data'!A$12,A250,0),"") ->  | C250: =IF(OFFSET('General input data'!C$12,A250,0)<>"",OFFSET('General input data'!C$12,A250,0),"") ->  | D250: =IF(OFFSET('General input data'!E$12,A250,0)<>"",OFFSET('General input data'!E$12,A250,0),"") ->  | G250: =IF(F250>0,C$214*F250,"") ->  | H250: =IF(F250>0,D$214*F250,"") ->  | K250: =IF(J250<>"",-I250*J250*H250,"") ->  | P250: =IF(O250<>"",-N250*O250*H250,"") ->  | R250: =IF(H250<>"",K250+P250,"") -> 
G251: =IF(F251>0,C$214*F251,"") ->  | H251: =IF(F251>0,D$214*F251,"") ->  | K251: =IF(J251<>"",-I251*J251*H251,"") ->  | P251: =IF(O251<>"",-N251*O251*H251,"") ->  | R251: =IF(H251<>"",K251+P251,"") -> 
K252: =IF(J252<>"",-I252*J252*H252,"") ->  | P252: =IF(O252<>"",-N252*O252*H252,"") ->  | R252: =IF(H252<>"",K252+P252,"") -> 
R253: =IF(H253<>"",K253+P253,"") -> 
H260: =IF(F260*$D$58>0,F260*$D$58,"") ->  | M260: Fraction with no first use identified: | O260: =IF(D250<>"",(1-F261),"") ->  | P260: =IF(O260<>"",O260*D250,"") -> 
E261: Total/weighted average: | F261: =IF(SUM(F250:F260)>0,SUM(F250:F260),"") ->  | G261: =IF(SUM(G250:G260)>0,SUM(G250:G260),"") ->  | I261: =IF(D250<>"",K261/D250,"") ->  | K261: =IF(D250<>"",SUM(K250:K259),"") ->  | L261: =IF(D250<>"",SUMPRODUCT(F250:F251,L250:L251),"") ->  | N261: =IF(D250<>"",P261/D250,"") ->  | P261: =IF(D250<>"",SUM(P250:P260),"") ->  | R261: =IF(D250<>"",SUM(R250:R260),"") ->  | S261: =IF(D250<>"",I261+N261,"") -> 
A262: 17 | B262: =IF(OFFSET('General input data'!A$12,A262,0)<>"",OFFSET('General input data'!A$12,A262,0),"") ->  | C262: =IF(OFFSET('General input data'!C$12,A262,0)<>"",OFFSET('General input data'!C$12,A262,0),"") ->  | D262: =IF(OFFSET('General input data'!E$12,A262,0)<>"",OFFSET('General input data'!E$12,A262,0),"") ->  | G262: =IF(F262>0,C$214*F262,"") ->  | H262: =IF(F262>0,D$214*F262,"") ->  | K262: =IF(J262<>"",-I262*J262*H262,"") ->  | P262: =IF(O262<>"",-N262*O262*H262,"") ->  | R262: =IF(H262<>"",K262+P262,"") -> 
G263: =IF(F263>0,C$214*F263,"") ->  | H263: =IF(F263>0,D$214*F263,"") ->  | K263: =IF(J263<>"",-I263*J263*H263,"") ->  | P263: =IF(O263<>"",-N263*O263*H263,"") ->  | R263: =IF(H263<>"",K263+P263,"") -> 
K264: =IF(J264<>"",-I264*J264*H264,"") ->  | P264: =IF(O264<>"",-N264*O264*H264,"") ->  | R264: =IF(H264<>"",K264+P264,"") -> 
R265: =IF(H265<>"",K265+P265,"") -> 
H272: =IF(F272*$D$58>0,F272*$D$58,"") ->  | M272: Fraction with no first use identified: | O272: =IF(D262<>"",(1-F273),"") ->  | P272: =IF(O272<>"",O272*D262,"") -> 
E273: Total/weighted average: | F273: =IF(SUM(F262:F272)>0,SUM(F262:F272),"") ->  | G273: =IF(SUM(G262:G272)>0,SUM(G262:G272),"") ->  | I273: =IF(D262<>"",K273/D262,"") ->  | K273: =IF(D262<>"",SUM(K262:K271),"") ->  | L273: =IF(D262<>"",SUMPRODUCT(F262:F263,L262:L263),"") ->  | N273: =IF(D262<>"",P273/D262,"") ->  | P273: =IF(D262<>"",SUM(P262:P272),"") ->  | R273: =IF(D262<>"",SUM(R262:R272),"") ->  | S273: =IF(D262<>"",I273+N273,"") -> 
A274: 18 | B274: =IF(OFFSET('General input data'!A$12,A274,0)<>"",OFFSET('General input data'!A$12,A274,0),"") ->  | C274: =IF(OFFSET('General input data'!C$12,A274,0)<>"",OFFSET('General input data'!C$12,A274,0),"") ->  | D274: =IF(OFFSET('General input data'!E$12,A274,0)<>"",OFFSET('General input data'!E$12,A274,0),"") ->  | G274: =IF(F274>0,C$214*F274,"") ->  | H274: =IF(F274>0,D$214*F274,"") ->  | K274: =IF(J274<>"",-I274*J274*H274,"") ->  | P274: =IF(O274<>"",-N274*O274*H274,"") ->  | R274: =IF(H274<>"",K274+P274,"") -> 
G275: =IF(F275>0,C$214*F275,"") ->  | H275: =IF(F275>0,D$214*F275,"") ->  | K275: =IF(J275<>"",-I275*J275*H275,"") ->  | P275: =IF(O275<>"",-N275*O275*H275,"") ->  | R275: =IF(H275<>"",K275+P275,"") -> 
K276: =IF(J276<>"",-I276*J276*H276,"") ->  | P276: =IF(O276<>"",-N276*O276*H276,"") ->  | R276: =IF(H276<>"",K276+P276,"") -> 
R277: =IF(H277<>"",K277+P277,"") -> 
H284: =IF(F284*$D$58>0,F284*$D$58,"") ->  | M284: Fraction with no first use identified: | O284: =IF(D274<>"",(1-F285),"") ->  | P284: =IF(O284<>"",O284*D274,"") -> 
E285: Total/weighted average: | F285: =IF(SUM(F274:F284)>0,SUM(F274:F284),"") ->  | G285: =IF(SUM(G274:G284)>0,SUM(G274:G284),"") ->  | I285: =IF(D274<>"",K285/D274,"") ->  | K285: =IF(D274<>"",SUM(K274:K283),"") ->  | L285: =IF(D274<>"",SUMPRODUCT(F274:F275,L274:L275),"") ->  | N285: =IF(D274<>"",P285/D274,"") ->  | P285: =IF(D274<>"",SUM(P274:P284),"") ->  | R285: =IF(D274<>"",SUM(R274:R284),"") ->  | S285: =IF(D274<>"",I285+N285,"") -> 
A286: 19 | B286: =IF(OFFSET('General input data'!A$12,A286,0)<>"",OFFSET('General input data'!A$12,A286,0),"") ->  | C286: =IF(OFFSET('General input data'!C$12,A286,0)<>"",OFFSET('General input data'!C$12,A286,0),"") ->  | D286: =IF(OFFSET('General input data'!E$12,A286,0)<>"",OFFSET('General input data'!E$12,A286,0),"") ->  | G286: =IF(F286>0,C$214*F286,"") ->  | H286: =IF(F286>0,D$214*F286,"") ->  | K286: =IF(J286<>"",-I286*J286*H286,"") ->  | P286: =IF(O286<>"",-N286*O286*H286,"") ->  | R286: =IF(H286<>"",K286+P286,"") -> 
G287: =IF(F287>0,C$214*F287,"") ->  | H287: =IF(F287>0,D$214*F287,"") ->  | K287: =IF(J287<>"",-I287*J287*H287,"") ->  | P287: =IF(O287<>"",-N287*O287*H287,"") ->  | R287: =IF(H287<>"",K287+P287,"") -> 
K288: =IF(J288<>"",-I288*J288*H288,"") ->  | P288: =IF(O288<>"",-N288*O288*H288,"") ->  | R288: =IF(H288<>"",K288+P288,"") -> 
R289: =IF(H289<>"",K289+P289,"") -> 
H296: =IF(F296*$D$58>0,F296*$D$58,"") ->  | M296: Fraction with no first use identified: | O296: =IF(D286<>"",(1-F297),"") ->  | P296: =IF(O296<>"",O296*D286,"") -> 
E297: Total/weighted average: | F297: =IF(SUM(F286:F296)>0,SUM(F286:F296),"") ->  | G297: =IF(SUM(G286:G296)>0,SUM(G286:G296),"") ->  | I297: =IF(D286<>"",K297/D286,"") ->  | K297: =IF(D286<>"",SUM(K286:K295),"") ->  | L297: =IF(D286<>"",SUMPRODUCT(F286:F287,L286:L287),"") ->  | N297: =IF(D286<>"",P297/D286,"") ->  | P297: =IF(D286<>"",SUM(P286:P296),"") ->  | R297: =IF(D286<>"",SUM(R286:R296),"") ->  | S297: =IF(D286<>"",I297+N297,"") -> 
A298: 20 | B298: =IF(OFFSET('General input data'!A$12,A298,0)<>"",OFFSET('General input data'!A$12,A298,0),"") ->  | C298: =IF(OFFSET('General input data'!C$12,A298,0)<>"",OFFSET('General input data'!C$12,A298,0),"") ->  | D298: =IF(OFFSET('General input data'!E$12,A298,0)<>"",OFFSET('General input data'!E$12,A298,0),"") ->  | G298: =IF(F298>0,C$214*F298,"") ->  | H298: =IF(F298>0,D$214*F298,"") ->  | K298: =IF(J298<>"",-I298*J298*H298,"") ->  | P298: =IF(O298<>"",-N298*O298*H298,"") ->  | R298: =IF(H298<>"",K298+P298,"") -> 
G299: =IF(F299>0,C$214*F299,"") ->  | H299: =IF(F299>0,D$214*F299,"") ->  | K299: =IF(J299<>"",-I299*J299*H299,"") ->  | P299: =IF(O299<>"",-N299*O299*H299,"") ->  | R299: =IF(H299<>"",K299+P299,"") -> 
K300: =IF(J300<>"",-I300*J300*H300,"") ->  | P300: =IF(O300<>"",-N300*O300*H300,"") ->  | R300: =IF(H300<>"",K300+P300,"") -> 
R301: =IF(H301<>"",K301+P301,"") -> 
H308: =IF(F308*$D$58>0,F308*$D$58,"") ->  | M308: Fraction with no first use identified: | O308: =IF(D298<>"",(1-F309),"") ->  | P308: =IF(O308<>"",O308*D298,"") -> 
E309: Total/weighted average: | F309: =IF(SUM(F298:F308)>0,SUM(F298:F308),"") ->  | G309: =IF(SUM(G298:G308)>0,SUM(G298:G308),"") ->  | I309: =IF(D298<>"",K309/D298,"") ->  | K309: =IF(D298<>"",SUM(K298:K307),"") ->  | L309: =IF(D298<>"",SUMPRODUCT(F298:F299,L298:L299),"") ->  | N309: =IF(D298<>"",P309/D298,"") ->  | P309: =IF(D298<>"",SUM(P298:P308),"") ->  | R309: =IF(D298<>"",SUM(R298:R308),"") ->  | S309: =IF(D298<>"",I309+N309,"") -> 
A310: 21 | B310: =IF(OFFSET('General input data'!A$12,A310,0)<>"",OFFSET('General input data'!A$12,A310,0),"") ->  | C310: =IF(OFFSET('General input data'!C$12,A310,0)<>"",OFFSET('General input data'!C$12,A310,0),"") ->  | D310: =IF(OFFSET('General input data'!E$12,A310,0)<>"",OFFSET('General input data'!E$12,A310,0),"") ->  | G310: =IF(F310>0,C$214*F310,"") ->  | H310: =IF(F310>0,D$214*F310,"") ->  | K310: =IF(J310<>"",-I310*J310*H310,"") ->  | P310: =IF(O310<>"",-N310*O310*H310,"") ->  | R310: =IF(H310<>"",K310+P310,"") -> 
G311: =IF(F311>0,C$214*F311,"") ->  | H311: =IF(F311>0,D$214*F311,"") ->  | K311: =IF(J311<>"",-I311*J311*H311,"") ->  | P311: =IF(O311<>"",-N311*O311*H311,"") ->  | R311: =IF(H311<>"",K311+P311,"") -> 
K312: =IF(J312<>"",-I312*J312*H312,"") ->  | P312: =IF(O312<>"",-N312*O312*H312,"") ->  | R312: =IF(H312<>"",K312+P312,"") -> 
R313: =IF(H313<>"",K313+P313,"") -> 
H320: =IF(F320*$D$58>0,F320*$D$58,"") ->  | M320: Fraction with no first use identified: | O320: =IF(D310<>"",(1-F321),"") ->  | P320: =IF(O320<>"",O320*D310,"") -> 
E321: Total/weighted average: | F321: =IF(SUM(F310:F320)>0,SUM(F310:F320),"") ->  | G321: =IF(SUM(G310:G320)>0,SUM(G310:G320),"") ->  | I321: =IF(D310<>"",K321/D310,"") ->  | K321: =IF(D310<>"",SUM(K310:K319),"") ->  | L321: =IF(D310<>"",SUMPRODUCT(F310:F311,L310:L311),"") ->  | N321: =IF(D310<>"",P321/D310,"") ->  | P321: =IF(D310<>"",SUM(P310:P320),"") ->  | R321: =IF(D310<>"",SUM(R310:R320),"") ->  | S321: =IF(D310<>"",I321+N321,"") -> 
A322: 22 | B322: =IF(OFFSET('General input data'!A$12,A322,0)<>"",OFFSET('General input data'!A$12,A322,0),"") ->  | C322: =IF(OFFSET('General input data'!C$12,A322,0)<>"",OFFSET('General input data'!C$12,A322,0),"") ->  | D322: =IF(OFFSET('General input data'!E$12,A322,0)<>"",OFFSET('General input data'!E$12,A322,0),"") ->  | G322: =IF(F322>0,C$214*F322,"") ->  | H322: =IF(F322>0,D$214*F322,"") ->  | K322: =IF(J322<>"",-I322*J322*H322,"") ->  | P322: =IF(O322<>"",-N322*O322*H322,"") ->  | R322: =IF(H322<>"",K322+P322,"") -> 
G323: =IF(F323>0,C$214*F323,"") ->  | H323: =IF(F323>0,D$214*F323,"") ->  | K323: =IF(J323<>"",-I323*J323*H323,"") ->  | P323: =IF(O323<>"",-N323*O323*H323,"") ->  | R323: =IF(H323<>"",K323+P323,"") -> 
K324: =IF(J324<>"",-I324*J324*H324,"") ->  | P324: =IF(O324<>"",-N324*O324*H324,"") ->  | R324: =IF(H324<>"",K324+P324,"") -> 
R325: =IF(H325<>"",K325+P325,"") -> 
H332: =IF(F332*$D$58>0,F332*$D$58,"") ->  | M332: Fraction with no first use identified: | O332: =IF(D322<>"",(1-F333),"") ->  | P332: =IF(O332<>"",O332*D322,"") -> 
E333: Total/weighted average: | F333: =IF(SUM(F322:F332)>0,SUM(F322:F332),"") ->  | G333: =IF(SUM(G322:G332)>0,SUM(G322:G332),"") ->  | I333: =IF(D322<>"",K333/D322,"") ->  | K333: =IF(D322<>"",SUM(K322:K331),"") ->  | L333: =IF(D322<>"",SUMPRODUCT(F322:F323,L322:L323),"") ->  | N333: =IF(D322<>"",P333/D322,"") ->  | P333: =IF(D322<>"",SUM(P322:P332),"") ->  | R333: =IF(D322<>"",SUM(R322:R332),"") ->  | S333: =IF(D322<>"",I333+N333,"") -> 
A334: 23 | B334: =IF(OFFSET('General input data'!A$12,A334,0)<>"",OFFSET('General input data'!A$12,A334,0),"") ->  | C334: =IF(OFFSET('General input data'!C$12,A334,0)<>"",OFFSET('General input data'!C$12,A334,0),"") ->  | D334: =IF(OFFSET('General input data'!E$12,A334,0)<>"",OFFSET('General input data'!E$12,A334,0),"") ->  | G334: =IF(F334>0,C$214*F334,"") ->  | H334: =IF(F334>0,D$214*F334,"") ->  | K334: =IF(J334<>"",-I334*J334*H334,"") ->  | P334: =IF(O334<>"",-N334*O334*H334,"") ->  | R334: =IF(H334<>"",K334+P334,"") -> 
G335: =IF(F335>0,C$214*F335,"") ->  | H335: =IF(F335>0,D$214*F335,"") ->  | K335: =IF(J335<>"",-I335*J335*H335,"") ->  | P335: =IF(O335<>"",-N335*O335*H335,"") ->  | R335: =IF(H335<>"",K335+P335,"") -> 
K336: =IF(J336<>"",-I336*J336*H336,"") ->  | P336: =IF(O336<>"",-N336*O336*H336,"") ->  | R336: =IF(H336<>"",K336+P336,"") -> 
R337: =IF(H337<>"",K337+P337,"") -> 
H344: =IF(F344*$D$58>0,F344*$D$58,"") ->  | M344: Fraction with no first use identified: | O344: =IF(D334<>"",(1-F345),"") ->  | P344: =IF(O344<>"",O344*D334,"") -> 
E345: Total/weighted average: | F345: =IF(SUM(F334:F344)>0,SUM(F334:F344),"") ->  | G345: =IF(SUM(G334:G344)>0,SUM(G334:G344),"") ->  | I345: =IF(D334<>"",K345/D334,"") ->  | K345: =IF(D334<>"",SUM(K334:K343),"") ->  | L345: =IF(D334<>"",SUMPRODUCT(F334:F335,L334:L335),"") ->  | N345: =IF(D334<>"",P345/D334,"") ->  | P345: =IF(D334<>"",SUM(P334:P344),"") ->  | R345: =IF(D334<>"",SUM(R334:R344),"") ->  | S345: =IF(D334<>"",I345+N345,"") -> 
A346: 24 | B346: =IF(OFFSET('General input data'!A$12,A346,0)<>"",OFFSET('General input data'!A$12,A346,0),"") ->  | C346: =IF(OFFSET('General input data'!C$12,A346,0)<>"",OFFSET('General input data'!C$12,A346,0),"") ->  | D346: =IF(OFFSET('General input data'!E$12,A346,0)<>"",OFFSET('General input data'!E$12,A346,0),"") ->  | G346: =IF(F346>0,C$214*F346,"") ->  | H346: =IF(F346>0,D$214*F346,"") ->  | K346: =IF(J346<>"",-I346*J346*H346,"") ->  | P346: =IF(O346<>"",-N346*O346*H346,"") ->  | R346: =IF(H346<>"",K346+P346,"") -> 
G347: =IF(F347>0,C$214*F347,"") ->  | H347: =IF(F347>0,D$214*F347,"") ->  | K347: =IF(J347<>"",-I347*J347*H347,"") ->  | P347: =IF(O347<>"",-N347*O347*H347,"") ->  | R347: =IF(H347<>"",K347+P347,"") -> 
K348: =IF(J348<>"",-I348*J348*H348,"") ->  | P348: =IF(O348<>"",-N348*O348*H348,"") ->  | R348: =IF(H348<>"",K348+P348,"") -> 
R349: =IF(H349<>"",K349+P349,"") -> 
H356: =IF(F356*$D$58>0,F356*$D$58,"") ->  | M356: Fraction with no first use identified: | O356: =IF(D346<>"",(1-F357),"") ->  | P356: =IF(O356<>"",O356*D346,"") -> 
E357: Total/weighted average: | F357: =IF(SUM(F346:F356)>0,SUM(F346:F356),"") ->  | G357: =IF(SUM(G346:G356)>0,SUM(G346:G356),"") ->  | I357: =IF(D346<>"",K357/D346,"") ->  | K357: =IF(D346<>"",SUM(K346:K355),"") ->  | L357: =IF(D346<>"",SUMPRODUCT(F346:F347,L346:L347),"") ->  | N357: =IF(D346<>"",P357/D346,"") ->  | P357: =IF(D346<>"",SUM(P346:P356),"") ->  | R357: =IF(D346<>"",SUM(R346:R356),"") ->  | S357: =IF(D346<>"",I357+N357,"") -> 
A358: 25 | B358: =IF(OFFSET('General input data'!A$12,A358,0)<>"",OFFSET('General input data'!A$12,A358,0),"") ->  | C358: =IF(OFFSET('General input data'!C$12,A358,0)<>"",OFFSET('General input data'!C$12,A358,0),"") ->  | D358: =IF(OFFSET('General input data'!E$12,A358,0)<>"",OFFSET('General input data'!E$12,A358,0),"") ->  | G358: =IF(F358>0,C$214*F358,"") ->  | H358: =IF(F358>0,D$214*F358,"") ->  | K358: =IF(J358<>"",-I358*J358*H358,"") ->  | P358: =IF(O358<>"",-N358*O358*H358,"") ->  | R358: =IF(H358<>"",K358+P358,"") -> 
G359: =IF(F359>0,C$214*F359,"") ->  | H359: =IF(F359>0,D$214*F359,"") ->  | K359: =IF(J359<>"",-I359*J359*H359,"") ->  | P359: =IF(O359<>"",-N359*O359*H359,"") ->  | R359: =IF(H359<>"",K359+P359,"") -> 
K360: =IF(J360<>"",-I360*J360*H360,"") ->  | P360: =IF(O360<>"",-N360*O360*H360,"") ->  | R360: =IF(H360<>"",K360+P360,"") -> 
R361: =IF(H361<>"",K361+P361,"") -> 
H368: =IF(F368*$D$58>0,F368*$D$58,"") ->  | M368: Fraction with no first use identified: | O368: =IF(D358<>"",(1-F369),"") ->  | P368: =IF(O368<>"",O368*D358,"") -> 
E369: Total/weighted average: | F369: =IF(SUM(F358:F368)>0,SUM(F358:F368),"") ->  | G369: =IF(SUM(G358:G368)>0,SUM(G358:G368),"") ->  | I369: =IF(D358<>"",K369/D358,"") ->  | K369: =IF(D358<>"",SUM(K358:K367),"") ->  | L369: =IF(D358<>"",SUMPRODUCT(F358:F359,L358:L359),"") ->  | N369: =IF(D358<>"",P369/D358,"") ->  | P369: =IF(D358<>"",SUM(P358:P368),"") ->  | R369: =IF(D358<>"",SUM(R358:R368),"") ->  | S369: =IF(D358<>"",I369+N369,"") -> 

Sheet 3 Forest
A1: Component 3: Change of carbon stored in forest
A3: Forest carbon balance is assessed for Forest Management Unit(s) defined by the corporation
A4: Depending on data availability and complexity, the corporation may define one or several FMUs
A5: All forest area owned by the corporation should be included. Forest areas not owned by the corporation, but where wood is sourced may be included.
A6: When data are insufficient, but other documentation of long-term forest management is available (eg certification, legislation, national trends), the change in forest carbon for a FMU may be set to 0
A8: Assessment of an FMU should address each carbon pool defined by IPCC Guidelines for GHG inventories, ie
A9: Living biomass | E9: Colour coding:
A10: Dead biomass | E10: Cells where data are entered manually
A11: Litter | E11: Cells where data is copied/calculated based on other cells - NO manual input to be made in these cells
A12: Organic soils | E12: Cells where constants / conversion factors are provided
A13: Mineral soils | E13: Cells with no data
A15: A range of different methodological options exist and no specific guidelines are provided here.
A16: For carbon change assessments where the total stock is not known, an arbitrary t0 stock shall be used (eg for soil carbon)
A17: For clarity, carbon pools for a FMU may be split on several lines
A20: ='General input data'!A9 -> Time period XXX
A21: Forest Management Unit | B21: Owner | C21: Area | E21: Carbon stock t0 | F21: Carbon stock t1 | G21: Assessed change in forest carbon stock | H21: Carbon stock per hectare at t1
C22: Total forest | D22: Proportion attributed to this assessment
C23: ha | D23: 0..1 | E23: tCO2e | F23: tCO2e | G23: tCO2e | H23: tCO2e/ha
A24: All my forest | C24: 100 | D24: 1 | E24: 300 | F24: 330 | G24: =IF(E24<"",-(F24-E24),"") -> -30 | H24: =IF(F24<"",F24/C24,"") -> 3.3
G25: =IF(E25<"",-(F25-E25),"") ->  | H25: =IF(F25<"",F25/C25,"") -> 
H26: =IF(F26<"",F26/C26,"") -> 
A48: TOTALS | C48: =SUM(C24:C27) -> 100 | G48: =SUM(G24:G47) -> -30 | H48: n.appl.

Sheet 4 Wood-based products
A1: Component 4: Change of carbon stored in wood-based products
I2: Colour coding:
A3: The carbon storage in wood-based products is assessed as the net increase of storage in the specified time period | I3: Cells where data are entered manually
A4: This corresponds to the national-level reporting of Harvested Wood Products (HWP) under the LULUCF methodology | I4: Cells where data is copied/calculated based on other cells - NO manual input to be made in these cells
A5: The basic logic is that the net increase of wood-based material in existing products is reported | I5: Cells where constants / conversion factors are provided
A6: This is the difference between inflow of products (ie the marketed products by the corporation) and the outflow of corresponding products from the pool during the same period | I6: Cells with no data
A7: The outflow is estimated based on half-lives for different product categories and including recycling rates - following the IPCC methodology for national reporting.
A8: A HWP Coefficient is assigned to each product category, that representes the proportion of the inflow that results in a net increase of the pool.
A9: The HWP Coefficient is the only additional data required on this sheet | I9: Tier 1 HWP Coefficients
A10: A range of Tier 1 HWP Coefficients are provided to the right. | I10: Product category /Commodity class | J10: HWP Coefficient | K10: Notes
A11: Alternatively, the user may assign other, custom, HWP Coefficients, altough this is either a judgement call or the result of complex analyses. | I11: Sawn wood | J11: 0.3 | K11: Assumes 35 years halftime
I12: Wood-based panels | J12: 0.2 | K12: Assumes 25 years halftime
I13: Fibre / Paper | J13: 0.05 | K13: Assumes 2 years halftime and a recycling rate of 30%
A14: ='General input data'!A9 -> Time period XXX | I14: Wood-based energy | J14: 0 | K14: Wood-based energy are assumed to instantly oxidize
A15: Product category | B15: Product use | C15: Marketed volumes | F15: HWP Coefficient | G15: Assessed HWP carbon storage contribution | I15: Roundwood under bark | J15: 0.1 | K15: Assumes 25% of volume resulting in sawnwood products or panels and 25% of volume resulting in fibre/paper product and 50% for wood-based energy products or no products which arenot leading to carbon storage
C16: quantity | D16: unit of measure | E16: in tCO2e
F17: tCO2e/tCO2e | G17: tCO2e | I17: Alternative Tier 1 HWP Coefficient for fibre/paper products depending on knowledge of recycling rate
A18: =IF('General input data'!A12<>"",'General input data'!A12,"") -> Product category 1 | B18: =IF('General input data'!B12<>"",'General input data'!B12,"") ->  | C18: =IF('General input data'!C12<>"",'General input data'!C12,"") -> 100 | D18: =IF('General input data'!D12<>"",'General input data'!D12,"") ->  | E18: =IF('General input data'!E12<>"",'General input data'!E12,"") -> 100 | F18: 0.2 | G18: =IF(E18<>"",-E18*F18,"") -> -20 | I18: Recycling rate | J18: HWP Coefficient
A19: =IF('General input data'!A13<>"",'General input data'!A13,"") -> Product category 2 | B19: =IF('General input data'!B13<>"",'General input data'!B13,"") ->  | C19: =IF('General input data'!C13<>"",'General input data'!C13,"") -> 100 | D19: =IF('General input data'!D13<>"",'General input data'!D13,"") ->  | E19: =IF('General input data'!E13<>"",'General input data'!E13,"") -> 100 | F19: 0.1 | G19: =IF(E19<>"",-E19*F19,"") -> -10 | I19: 0 | J19: 0.03
A20: =IF('General input data'!A14<>"",'General input data'!A14,"") ->  | B20: =IF('General input data'!B14<>"",'General input data'!B14,"") ->  | C20: =IF('General input data'!C14<>"",'General input data'!C14,"") ->  | D20: =IF('General input data'!D14<>"",'General input data'!D14,"") ->  | E20: =IF('General input data'!E14<>"",'General input data'!E14,"") ->  | I20: 30% (as above) | J20: 0.05
A21: =IF('General input data'!A15<>"",'General input data'!A15,"") ->  | B21: =IF('General input data'!B15<>"",'General input data'!B15,"") ->  | C21: =IF('General input data'!C15<>"",'General input data'!C15,"") ->  | D21: =IF('General input data'!D15<>"",'General input data'!D15,"") ->  | E21: =IF('General input data'!E15<>"",'General input data'!E15,"") ->  | I21: 0.5 | J21: 0.06
A22: =IF('General input data'!A16<>"",'General input data'!A16,"") ->  | B22: =IF('General input data'!B16<>"",'General input data'!B16,"") ->  | C22: =IF('General input data'!C16<>"",'General input data'!C16,"") ->  | D22: =IF('General input data'!D16<>"",'General input data'!D16,"") ->  | E22: =IF('General input data'!E16<>"",'General input data'!E16,"") ->  | I22: 0.7 | J22: 0.1
A23: =IF('General input data'!A17<>"",'General input data'!A17,"") ->  | B23: =IF('General input data'!B17<>"",'General input data'!B17,"") ->  | C23: =IF('General input data'!C17<>"",'General input data'!C17,"") ->  | D23: =IF('General input data'!D17<>"",'General input data'!D17,"") ->  | E23: =IF('General input data'!E17<>"",'General input data'!E17,"") ->  | I23: 0.9 | J23: 0.25
A24: =IF('General input data'!A18<>"",'General input data'!A18,"") ->  | B24: =IF('General input data'!B18<>"",'General input data'!B18,"") ->  | C24: =IF('General input data'!C18<>"",'General input data'!C18,"") ->  | D24: =IF('General input data'!D18<>"",'General input data'!D18,"") ->  | E24: =IF('General input data'!E18<>"",'General input data'!E18,"") -> 
A25: =IF('General input data'!A19<>"",'General input data'!A19,"") ->  | B25: =IF('General input data'!B19<>"",'General input data'!B19,"") ->  | C25: =IF('General input data'!C19<>"",'General input data'!C19,"") ->  | D25: =IF('General input data'!D19<>"",'General input data'!D19,"") ->  | E25: =IF('General input data'!E19<>"",'General input data'!E19,"") ->  | I25: Alternative Tier 1 HWP Coefficients for roundwood when additional information is available (HWP Coefficient = a+b)
A26: =IF('General input data'!A20<>"",'General input data'!A20,"") ->  | B26: =IF('General input data'!B20<>"",'General input data'!B20,"") ->  | C26: =IF('General input data'!C20<>"",'General input data'!C20,"") ->  | D26: =IF('General input data'!D20<>"",'General input data'!D20,"") ->  | E26: =IF('General input data'!E20<>"",'General input data'!E20,"") ->  | I26: (a) Fraction of roundwood resulting in sawnwood and wood based panels. | J26: Contribution to roundwood HWP Coefficient | L26: (b) Fraction of roundwood resulting in fibre/paper products: | M26: Contribution to roundwood HWP Coefficient by recycling rate
A27: =IF('General input data'!A21<>"",'General input data'!A21,"") ->  | B27: =IF('General input data'!B21<>"",'General input data'!B21,"") ->  | C27: =IF('General input data'!C21<>"",'General input data'!C21,"") ->  | D27: =IF('General input data'!D21<>"",'General input data'!D21,"") ->  | E27: =IF('General input data'!E21<>"",'General input data'!E21,"") ->  | I27: 0.2 | J27: 0.07 | M27: No recycling | N27: Recycling: 30% | O27: Recycling: 50% | P27: Recycling: 70%
A28: =IF('General input data'!A22<>"",'General input data'!A22,"") ->  | B28: =IF('General input data'!B22<>"",'General input data'!B22,"") ->  | C28: =IF('General input data'!C22<>"",'General input data'!C22,"") ->  | D28: =IF('General input data'!D22<>"",'General input data'!D22,"") ->  | E28: =IF('General input data'!E22<>"",'General input data'!E22,"") ->  | I28: 25% (as above) | J28: 0.09 | L28: 0 | M28: 0 | N28: n.appl | O28: n.appl | P28: n.appl
A29: =IF('General input data'!A23<>"",'General input data'!A23,"") ->  | B29: =IF('General input data'!B23<>"",'General input data'!B23,"") ->  | C29: =IF('General input data'!C23<>"",'General input data'!C23,"") ->  | D29: =IF('General input data'!D23<>"",'General input data'!D23,"") ->  | E29: =IF('General input data'!E23<>"",'General input data'!E23,"") ->  | I29: 0.3 | J29: 0.11 | L29: 0.1 | M29: -0.004 | N29: -0.005 | O29: -0.007 | P29: -0.01
A30: =IF('General input data'!A24<>"",'General input data'!A24,"") ->  | B30: =IF('General input data'!B24<>"",'General input data'!B24,"") ->  | C30: =IF('General input data'!C24<>"",'General input data'!C24,"") ->  | D30: =IF('General input data'!D24<>"",'General input data'!D24,"") ->  | E30: =IF('General input data'!E24<>"",'General input data'!E24,"") ->  | I30: 0.4 | J30: 0.14 | L30: 0.2 | M30: -0.005 | N30: -0.008 | O30: -0.013 | P30: -0.021
A31: =IF('General input data'!A25<>"",'General input data'!A25,"") ->  | B31: =IF('General input data'!B25<>"",'General input data'!B25,"") ->  | C31: =IF('General input data'!C25<>"",'General input data'!C25,"") ->  | D31: =IF('General input data'!D25<>"",'General input data'!D25,"") ->  | E31: =IF('General input data'!E25<>"",'General input data'!E25,"") ->  | I31: 0.5 | J31: 0.18 | L31: 25% (as above) | M31: -0.006 | N31: -0.01 | O31: -0.014 | P31: -0.024
A32: =IF('General input data'!A26<>"",'General input data'!A26,"") ->  | B32: =IF('General input data'!B26<>"",'General input data'!B26,"") ->  | C32: =IF('General input data'!C26<>"",'General input data'!C26,"") ->  | D32: =IF('General input data'!D26<>"",'General input data'!D26,"") ->  | E32: =IF('General input data'!E26<>"",'General input data'!E26,"") ->  | I32: 0.7 | J32: 0.25 | L32: 0.3 | M32: -0.007 | N32: -0.02 | O32: -0.025 | P32: -0.037
A33: =IF('General input data'!A27<>"",'General input data'!A27,"") ->  | B33: =IF('General input data'!B27<>"",'General input data'!B27,"") ->  | C33: =IF('General input data'!C27<>"",'General input data'!C27,"") ->  | D33: =IF('General input data'!D27<>"",'General input data'!D27,"") ->  | E33: =IF('General input data'!E27<>"",'General input data'!E27,"") ->  | I33: 0.9 | J33: 0.32
A34: =IF('General input data'!A28<>"",'General input data'!A28,"") ->  | B34: =IF('General input data'!B28<>"",'General input data'!B28,"") ->  | C34: =IF('General input data'!C28<>"",'General input data'!C28,"") ->  | D34: =IF('General input data'!D28<>"",'General input data'!D28,"") ->  | E34: =IF('General input data'!E28<>"",'General input data'!E28,"") -> 
A35: =IF('General input data'!A29<>"",'General input data'!A29,"") ->  | B35: =IF('General input data'!B29<>"",'General input data'!B29,"") ->  | C35: =IF('General input data'!C29<>"",'General input data'!C29,"") ->  | D35: =IF('General input data'!D29<>"",'General input data'!D29,"") ->  | E35: =IF('General input data'!E29<>"",'General input data'!E29,"") -> 
A36: =IF('General input data'!A30<>"",'General input data'!A30,"") ->  | B36: =IF('General input data'!B30<>"",'General input data'!B30,"") ->  | C36: =IF('General input data'!C30<>"",'General input data'!C30,"") ->  | D36: =IF('General input data'!D30<>"",'General input data'!D30,"") ->  | E36: =IF('General input data'!E30<>"",'General input data'!E30,"") -> 
A37: =IF('General input data'!A31<>"",'General input data'!A31,"") ->  | B37: =IF('General input data'!B31<>"",'General input data'!B31,"") ->  | C37: =IF('General input data'!C31<>"",'General input data'!C31,"") ->  | D37: =IF('General input data'!D31<>"",'General input data'!D31,"") ->  | E37: =IF('General input data'!E31<>"",'General input data'!E31,"") -> 
A38: =IF('General input data'!A32<>"",'General input data'!A32,"") ->  | B38: =IF('General input data'!B32<>"",'General input data'!B32,"") ->  | C38: =IF('General input data'!C32<>"",'General input data'!C32,"") ->  | D38: =IF('General input data'!D32<>"",'General input data'!D32,"") ->  | E38: =IF('General input data'!E32<>"",'General input data'!E32,"") -> 
A39: =IF('General input data'!A33<>"",'General input data'!A33,"") ->  | B39: =IF('General input data'!B33<>"",'General input data'!B33,"") ->  | C39: =IF('General input data'!C33<>"",'General input data'!C33,"") ->  | D39: =IF('General input data'!D33<>"",'General input data'!D33,"") ->  | E39: =IF('General input data'!E33<>"",'General input data'!E33,"") -> 
A40: =IF('General input data'!A34<>"",'General input data'!A34,"") ->  | B40: =IF('General input data'!B34<>"",'General input data'!B34,"") ->  | C40: =IF('General input data'!C34<>"",'General input data'!C34,"") ->  | D40: =IF('General input data'!D34<>"",'General input data'!D34,"") ->  | E40: =IF('General input data'!E34<>"",'General input data'!E34,"") -> 
A41: =IF('General input data'!A35<>"",'General input data'!A35,"") ->  | B41: =IF('General input data'!B35<>"",'General input data'!B35,"") ->  | C41: =IF('General input data'!C35<>"",'General input data'!C35,"") ->  | D41: =IF('General input data'!D35<>"",'General input data'!D35,"") ->  | E41: =IF('General input data'!E35<>"",'General input data'!E35,"") -> 
A42: TOTALS | C42: =SUM(C18:C30) -> 200 | E42: =SUM(E18:E30) -> 200 | G42: =SUM(G18:G41) -> -30

Sheet Summary of Assessment
A1: Summary of Assessment
A3: This sheet summarizes assessment of the four individual components that together describe the climate effect of wood and wood-based products at the corporate level.
A4: Note: A minus sign denotes a net sink of CO2e (less CO2 in the atmosphere) and a plus sign denotes a net source of CO2 (more CO2 in the atmosphere).
A5: Caution: The different components do not have the exact same characteristics and caution has to be taken when interpreting the total climate effect | F5: Colour coding:
A6: Corporation | B6: ='General input data'!B4 -> Name of Corporation | F6: Cells where data are entered manually
A7: Notes | F7: Cells where data is copied/calculated based on other cells - NO manual input to be made in these cells
A8: Year | B8: ='General input data'!A9 -> Time period XXX | F8: Cells where constants / conversion factors are provided
F9: Cells with no data
A10: Component | B10: tCO2e | C10: Comment
A11: 1 Value chain emissions for wood-based products | B11: =IF('1 Value chain emissions'!B50<>0,'1 Value chain emissions'!B50,"") -> 60 | C11: Positive values relates to emissions of CO2e
A12: 2 Prevented emissions from counterfactual products | B12: =IF('2 Prevented emissions - totals'!L42<>0,'2 Prevented emissions - totals'!L42,"") -> -210 | C12: Negative values relates to decreased emissions of CO2e
A13: 3 Change of carbon stored in forest | B13: =IF('3 Forest'!G48<>0,'3 Forest'!G48,"") -> -30 | C13: Negative values relates to increase in carbon stock
A14: 4 Change of carbon stored in wood-based products | B14: =IF('4 Wood-based products'!G42<>0,'4 Wood-based products'!G42,"") -> -30 | C14: Negative values relates to increase in carbon stock
A15: Total climate effect | B15: =SUM(B11:B14) -> -210 | C15: Negative values relates to a climate benefit (less CO2e in the atmosphere)

Sheet Blad1
